{"text_format":"3","workbook":"xlsx","n_sheets":5,"sheets":["Rekapitulacija","splošni pogoji in opombe","Gradbena in obrtniška dela","Strojne instalacije","Elektro - dobava opreme"],"not_rendered":{"images":2,"external_links":3,"defined_names":39},"read":"whole","date_system":"1900"}

{"sheet":"Rekapitulacija","index":0,"n_rows":33,"n_cols":6,"rows_kept":33,"merged":[[1,1,1,6]]}
[]
[null,"Objekt: IJS Ljubljana; Avtomatika, biokibernetika in robotika E1\nPreureditev laboratorija C05"]
[]
[]
[null,"A.","GRADBENA DELA:",null,null,{"$f":"SUM(F6:F8)","v":{"v":0,"d":"0.00 €"}}]
[null,null,{"$f":"+'Gradbena in obrtniška dela'!A3","v":"I."},{"$f":"+'Gradbena in obrtniška dela'!B3","v":"PRIPRAVLJALNA IN RUŠITVENA DELA"},null,{"$f":"'Gradbena in obrtniška dela'!F30","v":{"v":0,"d":"0.00 €"}}]
[null,null,{"$f":"'Gradbena in obrtniška dela'!$A$32","v":"II."},{"$f":"'Gradbena in obrtniška dela'!$B$32","v":"BETONSKA DELA"},null,{"$f":"'Gradbena in obrtniška dela'!$F$49","v":{"v":0,"d":"0.00 €"}}]
[null,null,{"$f":"'Gradbena in obrtniška dela'!A51","v":"III."},{"$f":"'Gradbena in obrtniška dela'!B51","v":"ZIDARSKA DELA"},null,{"$f":"'Gradbena in obrtniška dela'!F68","v":{"v":0,"d":"0.00 €"}}]
[null,"B.","OBRTNIŠKA DELA - finalizacija:",null,null,{"$f":"SUM(F10:F16)","v":{"v":0,"d":"0.00 €"}}]
[null,null,{"$f":"'Gradbena in obrtniška dela'!A72","v":"IV. "},{"$f":"'Gradbena in obrtniška dela'!B72","v":"KLJUČAVNIČARSKA DELA"},null,{"$f":"'Gradbena in obrtniška dela'!F90","v":{"v":0,"d":"0.00 €"}}]
[null,null,{"$f":"'Gradbena in obrtniška dela'!A92","v":"V. "},{"$f":"'Gradbena in obrtniška dela'!B92","v":"SUHOMONTAŽNA DELA "},null,{"$f":"'Gradbena in obrtniška dela'!F142","v":{"v":0,"d":"0.00 €"}}]
[null,null,{"$f":"'splošni pogoji in opombe'!B107","v":"VI. "},{"$f":"'splošni pogoji in opombe'!C107","v":"NOTRANJE STAVBNO POHIŠTVO "},null,{"$f":"'Gradbena in obrtniška dela'!F192","v":{"v":0,"d":"0.00 €"}}]
[null,null,{"$f":"'Gradbena in obrtniška dela'!A194","v":"VII."},{"$f":"'Gradbena in obrtniška dela'!B194","v":"TLAK"},null,{"$f":"'Gradbena in obrtniška dela'!F210","v":{"v":0,"d":"0.00 €"}}]
[null,null,{"$f":"'Gradbena in obrtniška dela'!A212","v":"VIII. "},{"$f":"'Gradbena in obrtniška dela'!B212","v":"KERAMIČARSKA DELA "},null,{"$f":"'Gradbena in obrtniška dela'!F230","v":{"v":0,"d":"0.00 €"}}]
[null,null,{"$f":"'Gradbena in obrtniška dela'!A232","v":"IX."},{"$f":"'Gradbena in obrtniška dela'!B232","v":"SLIKOPLESKARSKA DELA"},null,{"$f":"'Gradbena in obrtniška dela'!F258","v":{"v":0,"d":"0.00 €"}}]
[null,null,{"$f":"'Gradbena in obrtniška dela'!A260","v":"X."},{"$f":"'Gradbena in obrtniška dela'!B260","v":"RAZNA DELA"},null,{"$f":"'Gradbena in obrtniška dela'!F271","v":{"v":0,"d":"0.00 €"}}]
[null,"C.","STROJNE INSTALACIJE",null,null,{"$f":"SUM(F18:F22)","v":{"v":0,"d":"0.00 €"}}]
[null,null,"1.",{"$f":"'Strojne instalacije'!B4","v":"OGREVANJE"},null,{"$f":"'Strojne instalacije'!F71","v":{"v":0,"d":"0.00 €"}}]
[null,null,"2.",{"$f":"'Strojne instalacije'!B73","v":"HLAJENJE "},null,{"$f":"'Strojne instalacije'!F185","v":{"v":0,"d":"0.00 €"}}]
[null,null,"3.",{"$f":"'Strojne instalacije'!B187","v":"PREZRAČEVANJE"},null,{"$f":"'Strojne instalacije'!F319","v":{"v":0,"d":"0.00 €"}}]
[null,null,"4.",{"$f":"'Strojne instalacije'!B321","v":"KOMPRIMIRAN ZRAK"},null,{"$f":"'Strojne instalacije'!F367","v":{"v":0,"d":"0.00 €"}}]
[null,null,"5.",{"$f":"'Strojne instalacije'!B369","v":"INTERNA VODOVODNA INSTALACIJA "},null,{"$f":"'Strojne instalacije'!F471","v":{"v":0,"d":"0.00 €"}}]
[null,"D.","ELEKTRO INSTALACIJE - dobava",null,null,{"$f":"SUM(F24:F26)","v":{"v":0,"d":"0.00 €"}}]
[null,null,"1.",{"$f":"'Elektro - dobava opreme'!B6","v":"1.1 SVETILKE"},null,{"$f":"'Elektro - dobava opreme'!F26","v":{"v":0,"d":"0.00 €"}}]
[null,null,"2.",{"$f":"'Elektro - dobava opreme'!B29","v":"1.2 INSTALACIJSKI MATERIAL"},null,{"$f":"'Elektro - dobava opreme'!F67","v":{"v":0,"d":"0.00 €"}}]
[null,null,"3.",{"$f":"'Elektro - dobava opreme'!B69","v":"1.3 ELEKTRIČNI RAZDELILCI"},null,{"$f":"'Elektro - dobava opreme'!F76","v":{"v":0,"d":"0.00 €"}}]
[null,"A + B + C + D","SKUPAJ brez DDV",null,{"$f":"SUM(E20:E22)","v":{"v":0,"d":"0.00 €"}},{"$f":"F5+F9+F17+F23","v":{"v":0,"d":"0.00 €"}}]
[null,"E","NEPREDVIDENA DELA* brez DDV",null,{"v":0.1,"d":"10%"},{"$f":"F27*E28","v":{"v":0,"d":"0.00 €"}}]
[null,"A + B + C + D + E","SKUPAJ z NEPREDVIDENIMI DELI brez DDV",null,null,{"$f":"F28+F27","v":{"v":0,"d":"0.00 €"}}]
[null,null,"DDV 22 %",null,null,{"$f":"F29*0.22","v":{"v":0,"d":"0.00 €"}}]
[null,"A + B + C + D + E","SKUPAJ z DDV",null,null,{"$f":"F30+F29","v":{"v":0,"d":"0.00 €"}}]
[]
[null,"*nepredvidena dela so obračunana po dejanskih stroških, potrjena s strani nadzora"]

{"sheet":"splošni pogoji in opombe","index":1,"n_rows":150,"n_cols":3,"rows_kept":150,"merged":[[1,2,1,3],[7,2,7,3],[8,2,8,3],[9,2,9,3],[10,2,10,3],[11,2,11,3],[12,2,12,3]]}
[null,null,"OBJEKT:"]
[null,null,"PREUREDITEV LABORATORIJA C05"]
[]
[]
[null,null,"SPLOŠNE   ZAHTEVE ZA IZDELAVO PONUDBE:"]
["šifra"]
["2A.05",null,"Splošno"]
["2A.05.1",null,"V cenah ponudbenega predračuna je potrebno upoštevati pogoje, zahteve in navodila iz: "]
["2A.05.11","-","Tehničnih poročil in navodil iz vseh sestavnih delov projektne dokumentacije (PZI)."]
["2A.05.12","-","Študije ravnanja z gradbenimi odpadki (začasne in stalne deponije), ter upoštevati sprotno odvažanje odpadkov, ki nastajajo pri izvedbi."]
["2A.05.13","-","Pri izvedbi upoštevati vse veljavne predpise (splošno, področje gradbeništva in varstva pri delu,…)."]
["2A.05.14","-","Splošne tehnične pogoje iz različnih ustreznih predpisov in standardov (gradbeni postopki, tolerance, kvalitetne zahteve in kontrole,…). "]
["2A.05.15","-","Izvajalec mora zagotavljati sprotno čiščenje gradbišča, vključno z odvozom odpadkov na trajno deponijo, vključno z plačilom takse."]
[null,"-","Izvajalec mora zagotavljati po končanih delih fino čiščenje prostorov, po potrebi tudi prostorov v neposredni bližini, ki so bili zaradi del onesnaženi (kar vključuje finalno detajlno čiščenje prostorov objekta po končanih delih: vsi notranji tlaki in strop, stavbno pohištvo, okenske police, notranje ograje s polnili, stenske obloge (keramika, granitogres), fiksna oprema in napeljave, ...)"]
[null,"-","Izvajalec mora upoštevati v cenah ponudbenega predračuna koordinacijo izvedbe del z ostalimi izvajalci ter naročnikom na projektu."]
[null,null,"Izvajalec mora upoštevati v cenah ponudbenega predračuna vse transportne in manipulativne stroške ter stroške izdelave navodil o obratovanju ter vzdrževanju in ostala tehnična dokumentacija, ki je opredeljena z veljavno zakonodajo. "]
[]
[null,null,"ZA RAZPIS:"]
[null,null,"Žig in podpis pooblaščene osebe ponudnika"]
[]
["I.","I.","PRIPRAVLJALNA IN RUŠITVENA DELA"]
[null,"A.","OPOMBE "]
[]
[null,"-","Pred izvedbo rušitvenih del je potrebno pregledati potek obstoječih električnih in stojnih inštalacij in ostalih vodov, da se prepreči škoda. Odklop potencialno nevarnih elementov je potrebno vpisati v gradbeni dnevnik. Odklop morajo izvajati pooblaščene osebe."]
[null,"-","Izdelava načrta ureditve gradbišča in dostopnih poti."]
[null,"-","Vse stroške povezane z izvajanjem ukrepov skladno s Uredbo o preprečevanju in zmanjševanju emisije delcev iz gradbišč (Ur.list RS, št. 21/2011) ter izdelavo elaborata preprečevanja in zmanjševanja emisije delcev iz gradbišča."]
[null,"-","Pri formiranju cene rušitvenih del je potrebno upoštevati, da se rušenje in ravnanje z odpadki izvaja v skladu z vso Slovensko zakonodajo za to področje. Za prevzem odpadkov in izdajo referenčnih listov je odgovoren izvajalec rušitvenih del."]
[null,"-","Vse postavke rušitvenih del vsebujejo vsa potrebna dela, manipulacije, uporabo potrebnih orodij in izvedbo zaščitnih ukrepov za izvedbo opisanih del."]
[null,"-","Vse postavke vsebujejo iznos rušenega materiala iz objekta,  začasno skladiščenje materiala na gradbišču, transport in deponiranje materiala na organizirano deponijo po ločenih frakcijah z nalaganjem in vsemi potrebnimi manipulacijami ter odvozom rušenega materiala na organizirano deponijo s pridobljeno koncesijo za posamezno vrsto odpadka, vključno s plačilom takse in pristojbin za odlaganje materiala na deponji (pooblaščenim zbiralcem gradbenih odpadkov s strani Agencije RS za okolje)."]
[null,"-","Izvajalec je najkasneje ob predaji objekta, sicer pa na zahtevo nadzora ali investitorja, dolžan predati potrdila o prevzemu odpadnega  materiala na deponiji, izpolnjena na predpisanih obrazcih."]
[null,"-","Termina 'pazljiva odstranitev' in 'demontaža za ponovno vgradnjo' pomenita, da je potrebno opisani gradbeni element odstraniti na način, ki omogoči ponovno uporabo elementa. Če izvajalec smatra, da obstaja verjetnost, da opisanih del ne bo mogoče izvesti tako, da se element očuva za ponovno vgradnjo, je pred začetkom del dolžan obvestiti nadzorni organ ali projektanta ali naročnika. V ceni postavke se upošteva tudi pazljivo skladiščenje odstranjenega elementa v zaščitenem prostoru gradbišča do ponovne vgradnje, kot tudi priprava elementa na ponovno vgradnjo - čiščenje, poravnava, ravnanje morebitnih posledic odstranjevanja, ipd."]
[null,"-","V ceni postavk je vključena uporaba lahkih premičnih odrov do višine 5m. "]
[]
[]
[null,"II.","BETONSKA DELA"]
[]
[null,"A.","SPLOŠNI OPISI"]
[null,null,"Betonska dela"]
[null,null,"STANDARDI"]
[null,"-","Pri izdelavi betona, armiranega betona, armature in elementov iz teh materialov, kvaliteti materialov, izdelavi, transportu, vgrajevanju in negi betona ter potrebnih kontrolah, je potrebno upoštevati SIST EN 206:2013, SIST 1026:2016 in ustrezne standarde (Eurocode 2) oz. pravilnike za posamezne uporabljene materiale in njihove preiskave. "]
[null,"-","Betonske konstrukcije spadajo skladno s SIST EN 13670:2010 v 2 izvedbeni razred."]
[null,"-","Armatura mora biti izvedena iz jekla B500_B pri dobavi in vgradnji je potrebno upoštevati navodila skladno s SIST EN 1992-1-1 in SIST EN 10080"]
[null,null,"OPISI"]
[null,null,"Betoniranje"]
[null,"-","Pred pričetkom betonskih del je potrebno izdelati projekt betona, ki mora predpisati dobavo in pripravo ustreznih zmesi kamnitih zrn, polnil, cementa, vode, kemijskih in drugih dodatkov ter proizvodnjo, dovoz in vgraditev sveže mešanice betona na mestih in na način, določen s projektom. Projekt betona potrdi projektant. Zahtevane karakteristike betona za posamezne elemente in trdnost betona so podane na posameznih armaturnih načrtih (skladno s SIST EN 206:2013 in SIST 1026:2016)."]
[null,"-","Betonska dela je treba izvajati pri ustreznih pogojih, kjer znaša temperatura zraka od 5°C do 30°C. V kolikor se ta dela izvajajo pri drugačnih klimatskih pogojih je potrebno, skladno s projektom betona in dogovorom z nadzorom, zagotoviti operativne rešitve za: - ustreznost betonske mešanice,- ustrezne pogoje za transport in vgrajevanje betona,- ustrezne pogoje za nego betona."]
[null,"-","Če se uporabi beton iz betonarn, morajo le-te imeti predpisane ateste in certifikate za proizvodnjo betona."]
[null,"-","OPOMBA: pri vseh konstrukcijskih betonih se upošteva Cl 0,4 razen, v postavkah, kjer je drugače navedeno."]
[null,"-","Na mestu pripravljena betonska mešanica mora zadostiti sledečim pogojem: - zmes kamnitih zrn mora ustrezati granulometrijski mejni krivulji za mešanico agregata za beton, - cement mora ustrezati zahtevam po kakovosti, določene s standardi in uporabiti je potrebno pravilno količino cementa za določeno marko betona, - konsistenca betonske mešanice mora biti ustrezna."]
[null,"-","Beton je treba vgraditi čim prej po mešanju, dokler se zaradi spremenjene konsistence ne zmanjša njegova vgradljivost. Za izboljšanje vgradljivosti se mešanici betona ne sme naknadno dodajati vode, pač pa je potrebno predvideti dodatke, ki bodo zagotavljali vgradljivost betona za čas, ko je predvidena njegova vgradnja. V kolikor beton ni bil vgrajen v predvidenem času, se tega betona ne sme uporabiti in ga je potrebno odstraniti z gradbišča na ustrezno začasno in nato stalno deponijo. Višina prostega padanja svežega betona pri vgrajevanju praviloma ne sme biti večja od 1,5 m, če niso storjeni potrebni ukrepi za preprečitev segregacije."]
[null,"-","Svež beton je treba zgostiti z mehaničnimi vibracijami (pervibratorji, planvibratorji ali opažnimi vibratorji). Zgostitev betona mora biti enakomerna, kar se doseže z zadostnim številom mest vibriranja, ustrezno debelino igel, ustreznim vplivnim območjem in debelino. Posebno pozorno je potrebno zgostiti beton v območju goste armature, vgradnih elementov, stikovanja z obstoječimi elementi in ob opažih."]
[null,"-","Izvajalec mora v projektu betona predvideti vmesne delovne stike, ki morajo biti zajeti v cenah na enoto, ter izvedbo le teh na način, da se zagotovi vodotesnost betona. Način in količino delovnih stikov je potrebno uskladiti s odgovornim projektantom ter nadzorom, hkrati jih je potrebno predviditi v projektu betona."]
[null,"-","V cenah mora izvajalec upoštevati tudi eventualno betoniranje po kampadah."]
[null,"-","V cenah mora biti upoštevana tudi izdelava preizkušancev in končno poročilo vgrajenega betona s strani pooblaščene institucije za pregled in kontrolo materialov."]
[null,"-","V cenah mora biti upoštevana tudi nega betonskih elementov (predvsem plošč): pokrivanje s PE folijo, zalivanje z vodo, upoštevati je potrebno ustrezno nego betona glede na letni čas izvajanja del ter projekt betona."]
[null,"-","Betoni, katerih površine ostanejo vidne, morajo biti vgrajeni visokokvalitetno, uporabiti je potrebno črpni beton z dodatki za vidne betone, plastifikatorji. Beton mora biti svetle barve (cement Salonit Anhovo), uporabljeni morajo biti kvalitetni opaži (kvaliteta obdelave po standardu VB3 in VB4), stene se izdelajo v eni potezi do vrha brez prekinitev na mestu s ploščo, pri VB4 so robovi ostri, brez trikotnih letvic, pri VB3 pa so vogali izvedeni s trikotno letvico, uporaba zaščitnega premaza kot Sika gard 700S. Obvezna je izdelava poskusnega vzorca; eventualne korekcije in dodatna površinska obdelava zaradi napak pri betoniranju in nezadovoljivi izvedbi opaženja, se ne obračuna ločeno."]
[null,"-","Površine betona morajo biti brez razpok, gnezd in vidne armature,"]
[null,"-","Izvajalec mora odvažati vse odpadke, ki nastajajo pri izvedbi."]
[null,null,"Armiranje"]
[null,"-","Vsa železokrivska dela je potrebno izdelati na osnovi armaturnih načrtov in skic armature, ki so sestavni del PZI in jih je potrebno prilagoditi, v kolikor pride do eventualnih sprememb. Železokrivska dela obsegajo dobavo, pripravo, rezanje, krivljenje in polaganje armature v pripravljene opaže, na način, določen s projektom. Minimalne zaščitne debeline betona, ki so podani v armaturnih načrtih, je potrebno upoštevati na vseh mestih. Dolžino palic in transportno vozilo je potrebno medsebojno uskladiti tako, da je zagotovljen transport pri katerem se armatura ne krivi in ne zvija."]
[null,"-","Za armaturo se uporablja jeklo, ki ustreza kvaliteti in karakteristikam jekla, ki je predviden v projektu. Armatura mora biti variva in ne sme biti mehansko poškodovana, ter mora imeti potrebne projektirane dimenzije. Ravnanje in krivljenje armature se izvaja v hladnem stanju. Pred polaganjem mora biti armatura očiščena vseh nečistoč, maščob, lusk korozije ipd."]
[null,"-","Pred polaganjem armature se postavijo opaži, ki morajo biti izdelani do take mere, da se armatura lahko vgradi brez dodatnega krivljenja in zvijanja. Armaturo je potrebno postaviti na distančnike, ki zagotavljajo minimalne odmike od opaža in projektirane medsebojne odmike, odmike med zgornjo in spodnjo armaturo ploskovnih konstrukcij, kjer ni stremen in zagotavljajo projektirano lego. Distančniki, ki se postavijo na opaž morajo biti antikorozijsko obstojni, ne smejo imeti škodljivih vplivov na beton in armaturo in ne smejo puščati sledi na površini betona. V kolikor se armatura postavlja na tla, mora biti pod njo izravnalna plast betona v debelini minimalno 5 cm oz bradavičasta folija."]
[null,"-","Armatura se ne sme dotikati vgradnih elementov, če so le ti pocinkani ali kako drugače galvansko zaščiteni. Takšne elemente je potrebno pritrditi na opaž, da se med betoniranjem ne premaknejo.\nArmatura mora biti položena tako, da je možno ustrezno vgrajevanje betona, ki pa se sme pričeti, ko je nadzorni organ prevzel projektirano armaturo."]
[null,null,"Dodatki in dodatni elementi"]
[null,"-","Za zagotovitev, izboljšanje ali spremembo določenih lastnosti mešanice cementnega betona se lahko uporabi različne ustrezne kemijske in druge dodatke: - plastifikatorje, - aerante, - pospeševala in zavlačevala vezanja, - pospeševala strjevanja, - gostila, - dodatek za delo z betonom pri nizkih temperaturah. Uporabo kemijskih in drugih dodatkov mora odobriti nadzorni organ. Pri uporabi kemijskih dodatkov je treba obvezno upoštevati navodila proizvajalca."]
[]
[null,"III.","ZIDARSKA DELA"]
[]
[null,"A.","SPLOŠNI OPISI"]
[null,null,"Zidarska dela"]
[null,null,"STANDARDI"]
[null,"-","Izvajanje zidarskih del mora potekati v skladu z standardom SIST EN 771, kjer so navedena pravila in kakovost izvedenih del. Vsi vgrajeni materiali morajo pred izvedbo biti certificirani ter pripravljeni oz, dostavljeni skladno z navodili."]
[null,"-","Uporaba in vgradnja hidroizolacijskih trakov mora biti skladna s SIST DIN 18195 1-10 in zahtevami pravilnika o zaščiti stavb pred vlago (Ur.l.. RS, št.29/2004)."]
[null,null,"OPISI"]
[null,null,"Zidarska dela"]
[null,"-","V ceni zidarskih del so zajeti vsi lahki premični odri viš. do 5 m za zidanje in ometavanje, čiščenje prostorov med in po končanih delih."]
[null,"-","Izvajalec mora odvažati vse odpadke, ki nastajajo pri izvedbi. Odvoz odpadkov zajeti v ceni."]
[null,null,"Hidroizolacije"]
[null,"-","Vgrajevanje hidroizolacijskih materialov mora biti skladna z navodili proizvajalca. Pred izdelavo horizontalne hidroizolacije je potrebno ustrezno očistiti oz pripraviti podlago. "]
[null,"-","Hidroizolacijo je potrebno izvajati v ustreznih razmerah (vsaj +5°) ter ustrezni temperaturi podlage, izvedena mora biti ustrezna priprava podlage. Kontrolira se tudi zlepljenost s podlago, vendar le pri trakovih, ki se vgrajujejo z varjenjem preko celotne površine, ravno tako se kontrolira tesnjenje preklopov po metodah opisanih v standardu SIST DIN 18195-3."]
[]
["IV. ","IV. ","KLJUČAVNIČARSKA DELA"]
[]
[null,"A.","OPOMBE "]
[]
[null,null,"- izdelki so izdelani po shemah iz projekta, po detajlih in po dogovoru s projektantom, "]
[null,null,"- mere za izdelke je vzeti na objektu,"]
[null,null,"- v cenah je vkalkulirati vsa pomožna dela (odri, prenosi, dvigi ipd.),"]
[null,null,"- izvajalec mora odvažati vse odpadke, ki nastajajo pri izvedbi."]
[null,null,"- izvajalec mora izdelati delavniške načrte, ki jih potrdi odgovorni projektant,"]
[null,null,"- konstrukcija spada skladno s standardom SIST EN 1090-2 v izvedbeni razred EXC 2."]
[null,null,"- dobava jeklenih profilov po SIST EN 10025-2, SIST EN 10210 in SIST EN 10219"]
[null,null,"- dobava vijakov v skladu s SIST EN 15048-2 in SIST EN 14399-4 "]
[null,null,"- v postavkah za jekleno konstrukcijo je že dodana 5% teža za upoštevanje veznih sredstev in\n  zvarov. V kolikor ponudnik ocenjuje, da je količina veznih sredstev in zvarov večja ali manjša od že upoštevane, mora svojo ceno prilagoditi glede na predvidevanje večjih ali manjših količin veznih sredstev in zvarov."]
[null,null,"- pregled jeklene konstrukcije s strani pooblaščene organizacije ter izdaja certifikata morajo biti zajeti v cenah na enoto. "]
[]
[]
[null,"V. ","SUHOMONTAŽNA DELA "]
[]
[null,"A.","OPOMBE "]
[]
[null,null,"- v ceno izdelave sten iz mavčno kartonskih plošč so vštete tudi izdelave prebojev vsled instalacijskih vodov, ojačitve v podkonstrukcijah pri vratih,"]
[null,null,"- v cenah morajo biti zajeti vsi potrebni delovni odri, vključno z upoštevanjem dela do višine 5,0 m"]
[null,null,"- izvajalec mora sproti odvažati vse odpadke, ki nastajajo pri izvedbi."]
[null,null,"- nepredvidena dela morajo biti predhodno usklajena in potrjena s strani nadzora in investitorja"]
[]
[null,"VI. ","NOTRANJE STAVBNO POHIŠTVO "]
[]
[null,"A.","OPOMBE "]
[]
[null,null,"- izdelki so izdelani po shemah iz projekta in po dogovoru s projektantom,"]
[null,null,"- pred izvedbo mora materiale in barve potrditi projektant, glede na izbrano notranjo opremo in \n  barvno shemo,"]
[null,null,"- mere za izdelke je vzeti na objektu, ne meriti po načrtu"]
[null,null,"- pri večjih odstopanjih dimenzij in pri spremembah izvajalec pred izvedbo kontaktira projektanta! "]
[null,null,"- upoštevati suhomontažno vgradnjo,"]
[null,null,"- v ceni vrat upoštevati tudi PVC zaustavljalce vrat"]
[null,null,"- izvajalec mora sproti odvažati vse odpadke, ki nastajajo pri izvedbi."]
[]
[]
[null,"VII.","TLAK"]
[]
[null,"A.","OPOMBE "]
[]
[null,null,"Opombe:"]
[null,null," - izvajalec pred izvedbo dostavi vzorce, ki jih potrdi projektant,"]
[null,null," - izvajalec pred naročilom preveri količine,"]
[null,null,"- izvedba malte za dosego ravnosti se izvede na mestih določenih po pregledu in potrditvi s strani nadzora"]
[null,null," - izvajalec mora odvažati vse odpadke, ki nastanejo pri izvedi, odvoz v pooblaščeno deponijo, odvoz in stroške vseh komunalnih pristojbin in taks zajeti v cenah po enoti,"]
[null,null,"- izvajalec mora sproti odvažati vse odpadke, ki nastajajo pri izvedbi."]
[]
[]
[null,"VIII. ","KERAMIČARSKA DELA "]
[]
[null,"A.","OPOMBE "]
[]
[null,null,"- vzorce pred izvedbo potrdi projektant,"]
[null,null,"- izvajalec pred naročilom preveri količine,"]
[null,null,"- izvajalec mora odvažati vse odpadke, ki nastajajo pri izvedbi."]
[null,null,"- ob izvedbi del je potrebno upoštevati dnevno čiščenje gradbišča, cene teh del morajo biti zajete v cenah na enoto."]
[null,null,"- v ceni morajo biti upoštevani vsi drobni elementi, prenosi, lepila, fugirne mase, ter vsa dela, ki omogočajo pravilno izvedbo keramičarskih del, vključno z izravnavno neravnin."]
[]
[]
[null,"IX.","SLIKOPLESKARSKA DELA"]
[]
[null,"A.","OPOMBE "]
[]
[null,null,"- v ceno slikoplesk. del so zajeti vsi delovni odri, do višine 5,0 m,"]
[null,null,"- v ceni upoštevati vse zaščite ter čiščenje prostorov med in po končanih delih, "]
[null,null,"- v ceni zajeti tudi vsa predhodna pripravljalna dela za pripravo podlage (očiščenje površine prahu, \n  madežev in drugih nečistoč, impregnacija…),"]
[null,null,"- izvajalec mora sproti odvažati vse odpadke, ki nastajajo pri izvedbi."]

{"sheet":"Gradbena in obrtniška dela","index":2,"n_rows":271,"n_cols":6,"rows_kept":271}
["A.","GRADBENA DELA"]
[]
["I.","PRIPRAVLJALNA IN RUŠITVENA DELA"]
[]
["A.","GLEJ LIST splošni pogoji in opombe"]
[]
["B.","POPIS DEL"]
[]
["št.post.","opis","EM","količina","cena/EM","vrednost"]
[]
[null,"PRIPRAVLJALNA DELA"]
[]
[{"$f":"COUNT($A$5:A10)+1","v":{"v":1,"d":"01."}},"Predhodno osnovno čiščenje prostorov pred začetkom del: vsi notranji tlaki, steneske obloge, stropovi, stavbno pohištvo, okenske police, oprema in napeljave ter stopnišča, ... obračun po neto tlorisni površini območja obdelave.","m2",{"v":125,"d":"125.0"},null,{"$f":"D13*E13","v":{"v":0,"d":"0.00 €"}}]
[]
[{"$f":"COUNT($A$5:A13)+1","v":{"v":2,"d":"02."}},"Izdelava protiprašne zaščite s PVC folijo na \nobmočju obstoječe odprtine v zidu. Stiki folije so lepljeni. Po končanju vseh del se zaščita odstrani.","m2",{"v":3,"d":"3.0"},null,{"$f":"+E15*D15","v":{"v":0,"d":"0.00 €"}}]
[]
[null,"RUŠITVE"]
[{"$f":"COUNT($A$5:A17)+1","v":{"v":3,"d":"03."}},"Demontaža in odstranitev obstoječe lesene predelne stene z zasteklitvami. Predelna stena v sestavi:\n- parapet do višine cca 1,0 m ter po obodu zasteklitve iz mavčnokartonskih plošč,\n- zasteklitev v lesenih okvirih, \n- dvokrilna lesena vrata s steklenim polnilom dimenzij 180/230 cm.\nKomplet z iznosom rušenega materiala iz objekta, nakladanjem, transportom v stalno pooblaščeno deponijo ter plačilom komunalnih taks, deponijo pridobi izvajalec.","m2",{"v":36,"d":"36.0"},null,{"$f":"+E18*D18","v":{"v":0,"d":"0.00 €"}}]
[]
[{"$f":"COUNT($A$5:A18)+1","v":{"v":4,"d":"04."}},"Zarez in rušenje obstoječih talnih naložb v debelini 29 cm, do HI, v sestavi:\n - 3 cm industrijski parket,\n - 9,5 cm AB plošča (estrih),\n - folija, \n - 4 cm poliuretan,\n - 12,5 cm siporex. \nKomplet z iznosom rušenega materiala iz objekta, nakladanjem, transportom v stalno pooblaščeno deponijo ter plačilom komunalnih taks, deponijo pridobi izvajalec.","m1",{"v":125,"d":"125.0"},null,{"$f":"D20*E20","v":{"v":0,"d":"0.00 €"}}]
[]
[{"$f":"COUNT($A$5:A21)+1","v":{"v":5,"d":"05."}},"Rušenje in odstranitev obstoječega talnega inštalacijskega kanala, širine cca 270 mm in višine cca 290 cm, vključno s pokrovom.\nKomplet z iznosom rušenega materiala iz objekta, nakladanjem, transportom v stalno pooblaščeno deponijo ter plačilom komunalnih taks, deponijo pridobi izvajalec.","m1",{"v":50,"d":"50.0"},null,{"$f":"+E22*D22","v":{"v":0,"d":"0.00 €"}}]
[]
[{"$f":"COUNT($A$5:A23)+1","v":{"v":6,"d":"06."}},"Rušenje in odstranitev obstoječega okna zaradi potreb vgradnje strojnih inštalacij. Komplet z iznosom rušenega materiala iz objekta, nakladanjem, transportom v stalno pooblaščeno deponijo ter plačilom komunalnih taks, deponijo pridobi izvajalec.","kos",{"v":1,"d":"1.0"},null,{"$f":"+E24*D24","v":{"v":0,"d":"0.00 €"}}]
[]
[{"$f":"COUNT($A$5:A25)+1","v":{"v":7,"d":"07."}},"Rušenje in odstranitev obstoječih kuhinjskih elementov. Komplet z iznosom rušenega materiala iz objekta, nakladanjem, transportom v stalno pooblaščeno deponijo ter plačilom komunalnih taks, deponijo pridobi izvajalec.","m1",2.5,null,{"$f":"+E26*D26","v":{"v":0,"d":"0.00 €"}}]
[]
[{"$f":"COUNT($A$5:A27)+1","v":{"v":8,"d":"08."}},"Pomoč izvajalcem pri delni odstranitvi in prestavitvi inštalacij ogrevanja vodovoda, komprimiranega zrada ipd. na mestu vgraditve nove odlagalne površine (Režijske ure).","ur",{"v":30,"d":"30.0"},null,{"$f":"+E28*D28","v":{"v":0,"d":"0.00 €"}}]
[]
[null,"PRIPRAVLJALNA DELA skupaj:",{"$nulls":3},{"$f":"SUM(F10:F29)","v":{"v":0,"d":"0.00 €"}}]
[]
["II.","BETONSKA DELA"]
[]
["A.","GLEJ LIST splošni pogoji in opombe"]
[]
["B.","POPIS DEL"]
[]
["št.post.","opis","EM","količina","Cena/EM","vrednost"]
[]
[null,"BETONSKA DELA"]
[{"$f":"COUNT(A$36:$B40)+1","v":{"v":1,"d":"01."}},"Dobava in vgrajevanje betona C 30/37, Dmax 16mm, v AB estrih debeline 9 cm, armiran z armaturno mrežo (samostojna postavka) in PP vlakni FHR 30 - doziranje 3,5 kg/m3, robno dilatiran. Estrih mora zagotavljati tlačno trdnost min 25 MPa. Pri izvedbi in ceni upoštevati vse opombe, prerez konstrukcije do 0,20 m3/m2 (količina je ocenjena)."]
[null,"Opomba: na vse obremenitve, ki jih poda naročnik, je potrebno kontrolirati ustreznost debeline AB plošče, ter natančneje določiti potrebno mrežno armaturo, mikro armaturo in izdelati projekt betona. Določiti potek fug in dilatacij v plošči.","m3",11.5,null,{"$f":"D42*E42","v":{"v":0,"d":"0.00 €"}}]
[]
[null,"OSTALA DELA "]
[{"$f":"COUNT(A$36:$B44)+1","v":{"v":2,"d":"02."}},"Dobava, krivljenje, polaganje in vezanje armature B 500B za talno ploščo oz AB estrih. Armatura premera do fi 12 mm in armaturne mreže (količina je ocenjena, potrebna je kontrola količine mrežne armature, oz preveriti s pripravo projekta betona). Upoštevati tudi ustrezne preklope, varjenje mrež ter ozemljitev tlaka (prepletanje ozemljila preko mreže).","kg",{"v":760,"d":"760.0"},null,{"$f":"D45*E45","v":{"v":0,"d":"0.00 €"}}]
[]
[{"$f":"COUNT(A$36:$B46)+1","v":{"v":3,"d":"03."}},"Pregled in izdelava statičnega računa za AB estrih vključno z armaturnim načrtom in projektom betona.","kpl",{"v":1,"d":"1.0"},null,{"$f":"D47*E47","v":{"v":0,"d":"0.00 €"}}]
[]
[null,{"$f":"B32 &\" skupaj:\"","v":"BETONSKA DELA skupaj:"},{"$nulls":3},{"$f":"SUM(F39:F48)","v":{"v":0,"d":"0.00 €"}}]
[]
["III.","ZIDARSKA DELA"]
[]
["A.","GLEJ LIST splošni pogoji in opombe"]
[]
["B.","POPIS DEL"]
[]
["št.post.","opis","EM","količina","Cena/EM","vrednost"]
[]
[null,"TOPLOTNE IZOLACIJE"]
[{"$f":"COUNT(A$55:$B59)+1","v":{"v":1,"d":"01."}},"Dobava in polaganje toplotne izolacije XPS v skupni deb. 20 cm, tlačne trdnosti 300kPa, kot npr. Fragmat XPL 300 GL ali enakovredno, možna vgradnja v dveh slojih debeline 10 cm, vključno z 1x PE folijo položeno preko izolacije.","m2",{"v":125,"d":"125.0"},null,{"$f":"+E60*D60","v":{"v":0,"d":"0.00 €"}}]
[]
[null,"HORIZONTALNE HI - sanacija obstoječe HI"]
[{"$f":"COUNT(A$52:$B62)+1","v":{"v":2,"d":"02."}},"Dobava in sanacija obstoječe horizontalne hidroizolacije tal »hidrozan«; 1x hladni bitumenski premaz (ibitol) in 1x bitumenski varilni trak z vložkom steklenega voala (Izotekt V4), s predhodnim odstranjevanjem poškodovanih slojev, čiščenje betonske podlage, izravnavo stikov s cementno malto. Potrebno izvesti  preklope v ustreznih širinah.","m2",{"v":70,"d":"70.0"},null,{"$f":"+E63*D63","v":{"v":0,"d":"0.00 €"}}]
[null," *Opcija 1: V primeru, da ob odstranitvi zgornjih slojev na AB plošči ni obstoječe HI, se izvede nov sloj 1x hladni bitumenski premaz (ibitol) in 1x bitumenski varilni trak z vložkom steklenega voala (Izotekt V4). Vključno z brušenjem AB plošče, čiščenjem betonske podlage komplet in izravnavo stikov s cementno malto.","m2",{"v":125,"d":"125.0"},null," - "]
[null," *Opcija 2: V primeru, da je ob odstranitvi zgornjih slojev obstoječa HI v slabem stanju, se ob upoštevanju ostalih opisov zajetih v zgornji postavki, izvede rušenje še obstoječih HI slojev.","m2",{"v":125,"d":"125.0"},null," - "]
[]
[]
[null,{"$f":"B51&\" skupaj:\"","v":"ZIDARSKA DELA skupaj:"},{"$nulls":3},{"$f":"SUM(F58:F67)","v":{"v":0,"d":"0.00 €"}}]
[]
["B.","OBRTNIŠKA DELA - finalizacija"]
[]
["IV. ","KLJUČAVNIČARSKA DELA"]
[]
["A.","GLEJ LIST splošni pogoji in opombe"]
[]
["B.","POPIS DEL"]
[]
["št.post.","opis","EM","količina","Cena/EM","vrednost"]
[]
[{"$f":"COUNT($A$72:A79)+1","v":{"v":1,"d":"01."}},"NOTRANJI PODEST"]
["a.)"," - Izdelava, dobava in montaža podkonstrukcije notranjega podesta iz jekla kvalitete S235 JR. Jeklena podkonstrukcija je sestavljena iz profilov HEB 240, UNP240, IPE 240 in IPE 80. Konstrukcija ustrezno sidrana in vijačena v obstoječe AB stebre (Hilti sidra). V ceno vključiti izvedbo s podlivno maso. Podest mora zagotoviti nosilnost minimalno 750 kg koristne obtežbe.\nKonstrukcija je antikorozijsko zaščitena in finalno opleskana v barvi RAL po izboru projektanta. Teža vključuje ves potrebni sidrni material in pritrdilni material. \nTeža konstrukcije vključno s pritrdilnim materialom je ocenjena, točna količina bo določena ob izdelavi statičnih in delavniških načrtov (pripravi ga izvajalec, cena načrtov zajeta v ločeni postavki).","kg ",{"v":4130,"d":"4,130.0"},null,{"$f":"D81*E81","v":{"v":0,"d":"0.00 €"}}]
["b.)"," - Izdelava, dobava in montaža drsnih panelov iz ekspandirane romboidne pločevine 45/20/4 mm. Elementi vročecinkani in prašno barvani v barvi RAL 9016, oz po izboru projektanta. Okvir iz jeklenih profilov 30/30 mm, vodoravne ojačitve 30/30 mm. Šest drsnih elementov dimenzij 90 x 172 cm.\nV ceno vključiti vodila ter vse potrebne nosilne in pritrdilne elemente. Konstrukcija se vgradi z detajli vgrajevanja, oziroma skladno z navodili proizvajalca.","m2",{"v":10,"d":"10.0"},null,{"v":0,"d":"0.00 €"}]
["c.)"," - Izdelava, dobava in montaža trotirne karniše za panele. Vključno z pritrdilnim in tesnilnim materialom.","m1",5.5,null,{"v":0,"d":"0.00 €"}]
["d.)"," - Izdelava, dobava in montaža nove jeklene pohodne gladke pločevine deb. 5mm, montirane na jekleno nosilno konstrukcijo. Delitev na segmente cca 80 cm. Vključno z izvedbo prebojev zaradi potreb elektro in strojnih inštalacij. Jeklo kvalitete S235 JR.","m2",{"v":31,"d":"31.0"},null,{"v":0,"d":"0.00 €"}]
["e.)"," - Pregled obstoječega stanja in izdelava statičnega računa odlagalne površine.","kpl",{"v":1,"d":"1.0"},null,{"v":0,"d":"0.00 €"}]
["f.)"," - Izdelava delavniških načrtov konstrukcije odlagalne površine.","kpl",{"v":1,"d":"1.0"},null,{"v":0,"d":"0.00 €"}]
[]
[{"$f":"COUNT($A$72:A87)+1","v":{"v":2,"d":"02."}},"Dobava in montaža ploščatega jekla za zaščito izvedbe zaključka tlaka (ob vratih). Vključno z vsem pritrdilnim in tesnilnim materialom.","m1",{"v":7,"d":"7.0"},null,{"$f":"D88*E88","v":{"v":0,"d":"0.00 €"}}]
[]
[null,{"$f":"B72&\" skupaj:\"","v":"KLJUČAVNIČARSKA DELA skupaj:"},{"$nulls":3},{"$f":"SUM(F80:F89)","v":{"v":0,"d":"0.00 €"}}]
[]
["V. ","SUHOMONTAŽNA DELA "]
[]
["A.","GLEJ LIST splošni pogoji in opombe"]
[]
["B.","POPIS DEL"]
[]
["št.post.","opis","EM","količina","Cena/EM","vrednost"]
[]
[{"$f":"COUNT($A$97:A99)+1","v":{"v":1,"d":"01."}},"Dobava in montaža predelnih sten kot naprimer sistem KNAUF W 112 ali enakovredno, deb. 15,0 cm po sestavi:"]
[null,"- mavčnokartonska plošča 2x (2x mavčna plošča deb. 1,25 cm ) širine 2,5cm,"]
[null,"- izolacija/podkonstrukcija (mineralna volna, enojna podkonstrukcija ) širina 10 cm,"]
[null,"- mavčnokartonska plošča 2x (2x mavčna plošča deb. 1,25 cm ) širine 2,5cm."]
[null,"V ceni zajeti obojestransko bandažiranje (dvakratno) - kvaliteta K2."]
[null,"V ceni upoštevati ves ustrezni pritrdilni, sidrni in drobni material, vključno z vsemi prenosi in prevozi ter obdelavo materialov skladno z navodili proizvajalca. V ceni upoštevati višino izdelovanja stene do 5,0 m.","m2",{"v":45,"d":"45.0"},null,{"$f":"+D105*E105","v":{"v":0,"d":"0.00 €"}}]
[]
[{"$f":"COUNT($A$97:A106)+1","v":{"v":2,"d":"02."}},"Dobava in montaža predelnih sten kot naprimer sistem KNAUF W 112 ali enakovredno, deb. 10,0 cm, na podestu, po sestavi:"]
[null,"- mavčnokartonska plošča 2x (2x mavčna plošča deb. 1,25 cm ) širine 2,5cm."]
[null,"- enojna podkonstrukcija, širina 5,0 cm,"]
[null,"- izolacija/podkonstrukcija (mineralna volna, enojna podkonstrukcija ) širina 5,0 cm,"]
[null,"- mavčnokartonska plošča 2x (2x mavčna plošča deb. 1,25 cm ) širine 2,5cm."]
[null,"V ceni zajeti enostransko bandažiranje (dvakratno) - kvaliteta K2."]
[null,"V ceni upoštevati ves ustrezni pritrdilni, sidrni in drobni material, vključno z vsemi prenosi in prevozi ter obdelavo materialov skladno z navodili proizvajalca. V ceni upoštevati višino izdelovanja stene do 5,0 m.","m2",{"v":5,"d":"5.0"},null,{"$f":"+D113*E113","v":{"v":0,"d":"0.00 €"}}]
[]
[{"$f":"COUNT($A$97:A114)+1","v":{"v":3,"d":"03."}},"Dobava in montaža obloge na AB in zidane stene, obloga iz mavčnokartonskih plošč, deb 10 cm z enojno kovinsko podkonstrukcijo in enostransko dvoslojno oblogo iz mavčnokarton. plošč (GKB) \ndeb. 2x12,5 mm, z vmesnim izolacijskim slojem iz mineralne volne deb. 7,5 cm. Vsi stiki so dvakrat bandažirani -  bandaža kvalitete K2. Kuhinja.","m2",{"v":10,"d":"10.0"},null,{"$f":"+D115*E115","v":{"v":0,"d":"0.00 €"}}]
[]
[{"$f":"COUNT($A$97:A116)+1","v":{"v":4,"d":"04."}},"Dobava in montaža obloge stropa pod prostorom za tiskalnike. Obloga iz mavčnokartonskih plošč deb. 12,5 mm, z enojno kovinsko podkonstrukcijo deb. 3,75 mm. Kovinska konstrukcija pritrjena na jekleno konstrukcijo podesta. Vsi stiki so dvakrat bandažirani -  bandaža kvalitete K2. Vključno z izrezi za vgradnjo luči po projektu elektro inštalacij ter potrebnih prebojev zaradi vgradnje strojnih inštalacij.","m2",{"v":10,"d":"10.0"},null,{"$f":"+D117*E117","v":{"v":0,"d":"0.00 €"}}]
[]
[{"$f":"COUNT($A$97:A116)+1","v":{"v":4,"d":"04."}},"Zapiranje okenske odprtine v obstoječi steni z oblogo iz mavčnokartonskih plošč. Dobava in vgradnja enojne kovinske podkonstrukcije, obloge iz mavčnokarton. plošč (GKB) deb. 12,5 mm, z vmesnim izolacijskim slojem iz mineralne volne deb. 10 cm. Vsi stiki so dvakrat bandažirani -  bandaža kvalitete K2.","m2",{"v":1,"d":"1.0"},null,{"$f":"+D119*E119","v":{"v":0,"d":"0.00 €"}}]
[]
[{"$f":"COUNT($A$97:A120)+1","v":{"v":6,"d":"06."}},"Izdelava in montaža zaključka (drsni dilatacijski stik) na stiku stena - strop (podest) po detajlu, komplet z vsem tesnilnim in pritrdilnim materialom (odrezki mavčnih plošč, trajnoelastično tesnilo, fugirna masa). ","m1",{"v":8,"d":"8.0"},null,{"$f":"+D121*E121","v":{"v":0,"d":"0.00 €"}}]
[]
[{"$f":"COUNT($A$97:A122)+1","v":{"v":7,"d":"07."}},"Doplačilo za vodoodporne mavčnokartonske plošče ob lijaku.","m2",{"v":3,"d":"3.0"},null,{"$f":"+D123*E123","v":{"v":0,"d":"0.00 €"}}]
[]
[{"$f":"COUNT($A$97:A124)+1","v":{"v":8,"d":"08."}},"Dobava in montaža UA profilov-ojačitve za odprtine vrat.","m1",{"v":20,"d":"20.0"},null,{"$f":"+D125*E125","v":{"v":0,"d":"0.00 €"}}]
[]
[{"$f":"COUNT($A$97:A126)+1","v":{"v":9,"d":"09."}},"Dobava in vgrajevanje Alu vogalnikov (zaščita vertikalnega robu na stiku dveh sten).","m1",{"v":9,"d":"9.0"},null,{"$f":"+D127*E127","v":{"v":0,"d":"0.00 €"}}]
[]
[{"$f":"COUNT($A$97:A128)+1","v":{"v":10,"d":"10."}},"Doplačilo za izdelavo in obdelavo špalet predelnih sten širine 15cm, vključno z vsemi ustreznimi vogalniki ter bandažiranjem do kvalitete K2.","m1",{"v":23,"d":"23.0"},null,{"$f":"E129*D129","v":{"v":0,"d":"0.00 €"}}]
[]
[{"$f":"COUNT($A$97:A130)+1","v":{"v":11,"d":"11."}},"Dodatek za lesene ojačitve iz OSB plošč v suhomontažni steni za vgradnjo:"]
[null,"- visečih omaric v kuhinji (do 1,5 m2).","kos",{"v":1,"d":"1.0"},null,{"$f":"+D132*E132","v":{"v":0,"d":"0.00 €"}}]
[]
[{"$f":"COUNT($A$97:A133)+1","v":{"v":12,"d":"12."}},"Izvedba prebojev v predelne stene zaradi potreb elektro in strojnih inštalacij (ocenjena količina):"]
[null," - prerez fi 80 mm,","kom",{"v":5,"d":"5.0"},null,{"$f":"+D135*E135","v":{"v":0,"d":"0.00 €"}}]
[null," - prerez fi 100 mm,","kom",{"v":5,"d":"5.0"},null,{"$f":"+D136*E136","v":{"v":0,"d":"0.00 €"}}]
[null," - prerez fi 120 mm,","kom",{"v":1,"d":"1.0"},null,{"$f":"+D137*E137","v":{"v":0,"d":"0.00 €"}}]
[null," - prerez fi 160 mm.","kom",{"v":1,"d":"1.0"},null,{"$f":"+D138*E138","v":{"v":0,"d":"0.00 €"}}]
[]
[{"$f":"COUNT($A$97:A139)+1","v":{"v":13,"d":"13."}},"Režijske ure","ure",{"v":10,"d":"10.0"},null,{"$f":"E140*D140","v":{"v":0,"d":"0.00 €"}}]
[]
[null,{"$f":"$B$92&\"skupaj:\"","v":"SUHOMONTAŽNA DELA skupaj:"},{"$nulls":3},{"$f":"SUM(F100:F141)","v":{"v":0,"d":"0.00 €"}}]
[]
["VI. ","NOTRANJE STAVBNO POHIŠTVO "]
[]
[]
["A.","GLEJ LIST splošni pogoji in opombe"]
[]
["B.","POPIS DEL"]
[]
["št.post.","opis","EM","količina","Cena/EM","vrednost"]
[]
[{"$f":"COUNT($A$146:A152)+1","v":{"v":1,"d":"01."}},"Izdelava, dobava in montaža notranjih dvokrilnih vrat:"]
[null," - odpiranje je dvokrilno, "]
[null," - okvir eloksiran aluminij,"]
[null," - barva RAL 9016,"]
[null," - krilo ALU, prozorno varnostno (lepljeno) steklo debeline 10 mm,"]
[null," - krilo je opremljeno z vsem okovjem ter RF vzdolžno satinirano kljuko, kot npr. tip Hoppe Amsterdam, ali enakovredno, ključavnica je cilindrična,"]
[null," - varnostni potisk stekla,"]
[null,"V ceni zajeti izvedbo kitanja stika podboj/stena, vključno z vsemi pripravljalnimi deli. "]
[null,"Izvedba v skladu s shemami projekta, skupaj s potrebnim pritrdilnim in sidrenim materialom. "]
[null,"Splošne opombe: Mere preveriti na objektu! Ne meriti po načrtu! Pri večjih odstopanjih dimenzij in pri spremembah izvajalec pred izvedbo kontaktira projektanta!"]
[null,"NV1 - svetle dimenzije vrat 150 x 230 cm,\nMontaža v predelno steno debeline 0,15 m.","kos",{"v":1,"d":"1.0"},null,{"$f":"+D163*E163","v":{"v":0,"d":"0.00 €"}}]
[]
[{"$f":"COUNT($A$146:A164)+1","v":{"v":2,"d":"02."}},"Izdelava, dobava in montaža notranje zasteklitve z vrati:"]
[null," - vrata odpiranje: skladno s shemami"]
[null," - okvir zasteklitev in vrat eloksiran aluminij,"]
[null," - barva RAL 9016,"]
[null," - krilo vrat ALU, spodnja polovica vrat ALU polnilo, zgornja polovica vrat prozorno varnostno (lepljeno) steklo debeline 10 mm, spodnji del ALU polnilo."]
[null," - krilo je opremljeno z vsem okovjem ter RF vzdolžno satinirano kljuko, kot npr. tip Hoppe Amsterdam, ali enakovredno, ključavnica je cilindrična,"]
[null," - varnostni potisk stekla,"]
[null,"NZ1 - dimenzije: 4x polja fiksna zasteklitev dim. 137/320, vrata dim. 100/205, 1x polje fiksna zasteklitev nad vrati dim. 100/210, montaža v predelno steno debeline 0,15 m.","kos",{"v":1,"d":"1.0"},null,{"$f":"+D172*E172","v":{"v":0,"d":"0.00 €"}}]
[]
[{"$f":"COUNT($A$146:A173)+1","v":{"v":3,"d":"03."}},"Izdelava, dobava in montaža notranje zasteklitve:"]
[null," - odpiranje - fiksno, "]
[null," - okvir eloksiran aluminij,"]
[null," - barva RAL 9016,"]
[null," - zasteklitev: prozorno varnostno (lepljeno) steklo debeline 10 mm, fino brušeni robovi,"]
[null," - varnostni potisk stekla,"]
[null,"NZ2 - dimenzije: 3x polja fiksna zasteklitev dim. 133/120, montaža v predelno steno debeline 0,15 m.","kos",{"v":1,"d":"1.0"},null,{"$f":"+D180*E180","v":{"v":0,"d":"0.00 €"}}]
[]
[{"$f":"COUNT($A$146:A181)+1","v":{"v":4,"d":"04."}},"Izdelava, dobava in montaža notranjega ALU okna, z ALU polnilom, dimenzij 50/50 cm. Barvanje v barvi RAL 9016. Odpiranje skladno s shemami ter opremljeno z vsem okovjem ter kljuko."]
[null,"V ceni zajeti izvedbo kitanja stika podboj/stena, vključno z vsemi pripravljalnimi deli."]
[null,"Izvedba v skladu s shemami projekta, skupaj s potrebnim pritrdilnim in sidrenim materialom. "]
[null,"Splošne opombe: Mere preveriti na objektu! Ne meriti po načrtu! Pri večjih odstopanjih dimenzij in pri spremembah izvajalec pred izvedbo kontaktira projektanta!","kos",{"v":1,"d":"1.0"},null,{"$f":"+D185*E185","v":{"v":0,"d":"0.00 €"}}]
[]
[{"$f":"COUNT($A$146:A186)+1","v":{"v":5,"d":"05."}},"Dobava in vgradnja stenske nalepke oz nalepke za vrata, skladno z renderji oz vizualizacijo:"]
[null," - stenska nalepka (logotip robotika), dim. 4x4 m,","m2",{"v":16,"d":"16.0"},null,{"$f":"+D188*E188","v":{"v":0,"d":"0.00 €"}}]
[null," - stenska nalepka (vsebina: E1, Department of automatics, biocybernetics and robotics), dim. 1x2 m,","m2",{"v":2,"d":"2.0"},null,{"$f":"+D189*E189","v":{"v":0,"d":"0.00 €"}}]
[null," - nalepka vrata (vsebina: E1), dim. 1x1 m.","m2",{"v":1,"d":"1.0"},null,{"$f":"+D190*E190","v":{"v":0,"d":"0.00 €"}}]
[]
[null,{"$f":"'splošni pogoji in opombe'!$C$107&\"skupaj:\"","v":"NOTRANJE STAVBNO POHIŠTVO skupaj:"},{"$nulls":3},{"$f":"SUM(F153:F191)","v":{"v":0,"d":"0.00 €"}}]
[]
["VII.","TLAK"]
[]
[]
["A.","GLEJ LIST splošni pogoji in opombe"]
[]
["B.","POPIS DEL"]
[]
["št.post.","opis","EM","količina","Cena/EM","vrednost"]
[]
[{"$f":"COUNT($A$194:A202)+1","v":{"v":1,"d":"01."}},"Dobava in izvedba finalnega samorazlivnega debeloslojnega EPOKSI tlaka deb.3mm, na pripravljeno podlago, z vsemi potrebnimi deli (nanosom epoksidnega predpremaza, nanosom izravnalnega sloja, nanosom samorazlivnega epoksidnega tlaka ter izvedbo zaključnega sloja v barvi RAL 7035). \nProstor: Laboratorij C05, delavnica, postor za tiskanje.\n ","m2",{"v":125,"d":"125.0"},null,{"$f":"E203*D203","v":{"v":0,"d":"0.00"}}]
[]
[{"$f":"COUNT($A$194:A204)+1","v":{"v":2,"d":"02."}},"Dobava in polaganje PVC tlaka na podestu. Tlak odporen na čistila in dezinfekcijska sredstva, popolnoma gladek, brez odprtih stikov. V ceni vključiti tudi tesnenje stikov s steno z eposki ali PUR kitom. V ceni vključiti, nanos parne zapore in izravnavo z izravnalno maso.\nProstor: Podest","m2",{"v":31,"d":"31.0"},null,{"$f":"E205*D205","v":{"v":0,"d":"0.00"}}]
[]
[{"$f":"COUNT($A$194:A206)+1","v":{"v":3,"d":"03."}},"Dobava in montaža zaključne nizkostenske PVC obloge višine 8 cm, kompletno z vsem pritrdilnim materialom.","m1",{"v":95,"d":"95.0"},null,{"$f":"E207*D207","v":{"v":0,"d":"0.00"}}]
[]
[]
[null,{"$f":"B194&\" skupaj:\"","v":"TLAK skupaj:"},{"$nulls":3},{"$f":"SUM(F202:F209)","v":{"v":0,"d":"0.00 €"}}]
[]
["VIII. ","KERAMIČARSKA DELA "]
[]
[]
["B.","POPIS DEL"]
[]
["št.post.","opis","EM","količina",null,"vrednost"]
[]
[{"$f":"COUNT($A$216:A218)+1","v":{"v":1,"d":"01."}},"Dobava in montaža stenske keramike kot na primer Marazzi Colorplay, white, semimat, dimenzij 30/90 cm, ali enakovredno oz po izboru projektanta."]
[null,"V ceno je potrebno vključiti polaganje (cementno lepilo ter predhodni grundirni premaz) ter vsa pomožna dela - rezanje, fugiranje, ipd. in prenosi. ","m2",{"v":4,"d":"4.0"},null,{"$f":"D220*E220","v":{"v":0,"d":"0.00 €"}}]
[]
[{"$f":"COUNT($A$216:A221)+1","v":{"v":2,"d":"02."}},"Izdelava predhodne hidroizolacije iz fleksibilne dvokomponentne cementne malte kot npr: Mapelastic ali enakovredno. Dvoslojni nanos po navodilih proizvajalca na stene ob lijaku."]
[null,"V ceni zajeti dobavo in montažo mrežice iz alkalno odpornih steklenih vlaken Fiberglass Mesh, ki se jo vtisne v prvi sloj.","m2",{"v":4,"d":"4.0"},null,{"$f":"D223*E223","v":{"v":0,"d":"0.00 €"}}]
[]
[{"$f":"COUNT($A$216:A224)+1","v":{"v":3,"d":"03."}},"Kitanje s silikonskim kitom, v barvi po izboru projektantov (stik tla - stenska keramika).","m1",{"v":2,"d":"2.0"},null,{"$f":"D225*E225","v":{"v":0,"d":"0.00 €"}}]
[]
[{"$f":"COUNT($A$216:A226)+1","v":{"v":4,"d":"04."}},"Dobava in montaža aluminijastih vogalnikov, v barvi po izboru projektantov (stik stena - stenska keramika).","m1",{"v":11,"d":"11.0"},null,{"$f":"E227*D227","v":{"v":0,"d":"0.00 €"}}]
[]
[]
[null,{"$f":"$B$212&\"skupaj:\"","v":"KERAMIČARSKA DELA skupaj:"},{"$nulls":3},{"$f":"SUM(F219:F229)","v":{"v":0,"d":"0.00 €"}}]
[]
["IX.","SLIKOPLESKARSKA DELA"]
[]
["A.","GLEJ LIST splošni pogoji in opombe"]
[]
["B.","POPIS DEL"]
[]
["št.post.","Opis","EM","Količina","Cena/EM","Vrednost (€)"]
[]
[{"$f":"COUNT($A$1:A239)+1","v":{"v":41,"d":"41."}},"Dvakratno glajenje in brušenje suhomontažnih sten in oblog z notranjim kitom ter dvakratno beljenje z notranjo zidno barvo v tonu RAL 9016 oz po izboru projektanta.","m2",{"v":110,"d":"110.0"},null,{"$f":"E240*D240","v":{"v":0,"d":"0.00 €"}}]
[{"$nulls":5},{"v":0,"d":"0.00 €"}]
[{"$f":"COUNT($A$1:A240)+1","v":{"v":42,"d":"42."}},"Kitanje in bandažiranje vertikalnega stika suhomontažna stena - obstoječa zidana oz AB stena.","m1",{"v":33,"d":"33.0"},null,{"v":0,"d":"0.00 €"}]
[{"$nulls":5},{"v":0,"d":"0.00 €"}]
[{"$f":"COUNT($A$1:A242)+1","v":{"v":43,"d":"43."}},"Kitanje in bandažiranje horizontalnega stika stena - AB strop.","m1",{"v":20,"d":"20.0"},null,{"v":0,"d":"0.00 €"}]
[{"$nulls":5},{"v":0,"d":"0.00 €"}]
[{"$f":"COUNT($A$1:A244)+1","v":{"v":44,"d":"44."}},"Dvakratno glajenje in brušenje obstoječih zidov, parapetov in AB stebrov ter stropa z notranjim kitom  (sanacije kjer je to potrebno) ter dvakratno beljenje z notranjo zidno barvo v tonu po izboru projektanta."]
[null," - notranja zidna barva RAL 9016 (bela, traffic white barva),","m2",{"v":300,"d":"300.0"},null,{"$f":"E247*D247","v":{"v":0,"d":"0.00 €"}}]
[null," - notranja zidna barva RAL 9004 (črna, signal black barva),","m2",{"v":170,"d":"170.0"},null,{"$f":"E248*D248","v":{"v":0,"d":"0.00 €"}}]
[null," - notranja zidna barva RAL 5012 (modra, light blue barva).","m2",{"v":50,"d":"50.0"},null,{"$f":"E249*D249","v":{"v":0,"d":"0.00 €"}}]
[{"$nulls":5},{"v":0,"d":"0.00 €"}]
[{"$f":"COUNT($A$1:A246)+1","v":{"v":45,"d":"45."}},"Doplačilo za slikanje sten z latexom do višine vrat oz oken, vključno s primer-om, na predhodno ometano, kitano, brušeno, osušeno in odprašeno površino, barvanje v barvi po izboru projektanta.","m2",{"v":20,"d":"20.0"},null,{"v":0,"d":"0.00 €"}]
[{"$nulls":5},{"v":0,"d":"0.00 €"}]
[{"$f":"COUNT($A$1:A251)+1","v":{"v":46,"d":"46."}},"Dodatek za premični oder (na kolesih) za izvedbo slikopleskarskih del v prostorih z višino nad 4,0m do 5,0m.","kos",{"v":1,"d":"1.0"},null,{"v":0,"d":"0.00 €"}]
[{"$nulls":5},{"v":0,"d":"0.00 €"}]
[{"$f":"COUNT($A$1:A253)+1","v":{"v":47,"d":"47."}},"Nepredvidena dela, obračun po dejanskih stroških.",{"$nulls":3},{"v":0,"d":"0.00 €"}]
[null,"Ocena: KV pleskar","ur",{"v":5,"d":"5.0"},null,{"v":0,"d":"0.00 €"}]
[]
[null,{"$f":"$B$232&\" skupaj:\"","v":"SLIKOPLESKARSKA DELA skupaj:"},{"$nulls":3},{"$f":"SUM(F240:F257)","v":{"v":0,"d":"0.00 €"}}]
[]
["X.","RAZNA DELA"]
[]
["št.post.","opis","EM","količina","cena/EM","vrednost"]
[]
[{"$f":"COUNT($A$261:A262)+1","v":{"v":1,"d":"01."}},"Izdelava, dobava in vgradnja jeklenega inštalacijskega kanala z inoks zunanjim robom   širina 290 mm, globine 90 mm, kot npr. tip ELBA talni 2P kanal TKND-P 250x70+30, ali enakovredno z inox pokrovom širine 290 mm in deb. 8 mm, npr. tip ELBA TKND 250. Zaradi zagotavljanja ustrezne nosilnosti talnega kanala (min. 250 kg), po potrebi predviditi tudi dodatne pregrade oz distančne profile z namenom preprečevanja povesa prokrova.","m1",{"v":37,"d":"37.0"},null,{"$f":"D264*E264","v":{"v":0,"d":"0.00 €"}}]
[]
[{"$f":"COUNT($A$261:A264)+1","v":{"v":2,"d":"02."}},"Požarna tesnenja strojnih in elektro inštalacij pri prehodih iz enega požarnega sektorja v drugega (dislociran elektro prostor) na osnovi načrta požarne varnosti, ki je sestavni del projektne dokumentacije.","kpl",{"v":1,"d":"1.0"},null,{"$f":"D266*E266","v":{"v":0,"d":"0.00 €"}}]
[]
[{"$f":"COUNT($A$261:A266)+1","v":{"v":3,"d":"03."}},"Dobava in vgradnja dvižne ploščadi, kot na primer RIWAL JLG 1230 ES, ali enakovredno, ki zagotovi naslednjim zahtevam:\n - delovna višina 5,66 m,\n - nosilnost 227 kg,\n - mere ploščadi: 1,25x 0,69 m.                                 ","kpl",{"v":1,"d":"1.0"},null,{"$f":"D268*E268","v":{"v":0,"d":"0.00 €"}}]
[]
[]
[null,"RAZNA DELA skupaj:",{"$nulls":3},{"$f":"SUM(F263:F270)","v":{"v":0,"d":"0.00 €"}}]

{"sheet":"Strojne instalacije","index":3,"n_rows":473,"n_cols":6,"rows_kept":473}
["C. Strojna instalacijska dela"]
["Poz.","Naziv elementa - Dobava in montaža","enota","količina","cena / enoto","Skupaj [€]"]
[]
["1.","OGREVANJE"]
[]
[null,"OPOMBA: Pred naročilom preveriti število opreme in preveriti ustreznost pri proizvajalcu."]
[null,"Pred izdelavo ponudbe naj si ponudnik pridobi ustrezne informacije s strani predstavnikov investitorja, nadzora oz. projektanta. Material in oprema morata biti najboljše kvalitete, ustrezati predpisanim standardom o kvaliteti in izvedbi, opremljena z vsemi potrebnimi certifikati in garancijskimi listi ter zaščitena proti mehanskim poškodbam. Skupaj z opremo je potrebno dostaviti tudi vsa tehnična navodila za servisiranje in upravljanje posameznih elementov. V popisu so upoštevani dobava in vgradnja vseh elementov s pomožnim materialom."]
[]
[null,"GLEJ LIST splošni pogoji in opombe"]
[]
[null,"DEMONTAŽNA DELA"]
[]
[{"$f":"COUNT($A$2:A12)+1","v":1},"Izvedba zapore sistema OGREVALNIH VEJ, na katerih se bo upravljal poseg predelave in prilagoditve, z organizacijo obveščanja upravitelja oziroma vzdrževalca sistema."]
[null,null,"kpl",1,null,{"$f":"D14*E14","v":0}]
[]
[{"$f":"COUNT($A$2:A15)+1","v":2},"Prestavitev obstoječih radiatorjev na novo lokacijo z vsem pritrdilnim in tesnilnim materialom vključno s konzolami."]
[null,null,"kpl",2,null,{"$f":"D17*E17","v":0}]
[]
[{"$f":"COUNT($A$2:A18)+1","v":3},"Čiščenje obstoječih radiatorjev."]
[null,null,"kpl",4,null,{"$f":"D20*E20","v":0}]
[]
[{"$f":"COUNT($A$2:A18)+1","v":3},"Demontaža cevi za ogrevalno vodo in odvoz na deponijo."]
[null,null,"m",4,null,{"$f":"D23*E23","v":0}]
[]
[{"$f":"COUNT($A$2:A24)+1","v":5},"Odvoz materiala na deponijo."]
[null,null,"kpl",1,null,{"$f":"D26*E26","v":0}]
[]
[null,"NOVO"]
[]
[]
[{"$f":"COUNT($A$2:A30)+1","v":6},"Črna navojna cev za razvod ogrevne oz. hladilne vode, po DIN2440 skupaj z varilnimi loki, reducirnimi kosi, pritrdilnim materialom, držali, dodatkom na odrez in montažo."]
[null,"DN  10","m",10,null,{"$f":"D32*E32","v":0}]
[]
[{"$f":"COUNT($A$2:A32)+1","v":7},"Dobava in montaža Armaflex ACE PLUS elastomerne fleksibilne izolacije iz elastomerne pene na osnovi sintetične gume za izolacijo cevovodov, zračnih kanalov, rezervoarjev, ventilov, fitingov, prirobnic v hladilni in klimatski tehniki in procesni industriji za preprečevanje kondenzacije in energijske prihranke. EU požarna klasifikacija B-s3,d0; toplotna prevodnost λ pri 0°C je 0,035 W/m; koef. upora difuziji vodne pare je 10.000; za temp. območje od -50°C  do  +110°C; trakovi in plošče lepljeni na površino do maks. +85°C. Toplotne mostove potrebno zaščititi s cevnimi nosilci Armafix AF  oziroma Armafix X. Spoje (vzdožne, prečne, površino) potrebno lepiti z original Armaflex lepilom,  za čiščenje orodja, rok in razmaščevanje pa Armaflex Čistilo. "]
[null,"CE certifikat v skladu z EN 14304. Na zunanjih instalacijah je izolacijo potrebno zaščititi z:  Armafinish 99 - zaščitni premaz v beli in sivi barvi  ali z oblogo Arma-Chek."]
[null,"ACE/P-09X018","m",10,null,{"$f":"D36*E36","v":0}]
[]
[{"$f":"COUNT($A$2:A37)+1","v":8},"Dobava in montaža montaža krogelne pipe PN6, vključno z vsem pritrdilnim in tesnilnim materialom."]
[null,"DN 10","kos",2,null,{"$f":"D39*E39","v":0}]
[]
[{"$f":"COUNT($A$2:A40)+1","v":9},"Polnjenje sistema ogrevne vode z vodo, poskusno obratovanje in regulacija sistema ogrevanja."]
[null,null,"kpl",1,null,{"$f":"D42*E42","v":0}]
[]
[{"$f":"COUNT($A$2:A43)+1","v":10},"Priklop novega ogrevnega razvoda na obstoječ sistem."]
[null,null,"kpl",2,null,{"$f":"D45*E45","v":0}]
[]
[null,"Ostalo"]
[]
[{"$f":"COUNT($A$2:A48)+1","v":11},"Pritrdilni material za obešanje in pritrjevanje cevi."]
[null,null,"kpl",1,null,{"$f":"D50*E50","v":0}]
[]
[{"$f":"COUNT($A$2:A51)+1","v":12},"Zaščitno miniziranje cevovodov in obešal."]
[null,null,"m2",1,null,{"$f":"D53*E53","v":0}]
[]
[{"$f":"COUNT($A$2:A54)+1","v":13},"Barvanje vidnih cevovodov in obešal."]
[null,null,"m2",1,null,{"$f":"D56*E56","v":0}]
[]
[{"$f":"COUNT($A$2:A57)+1","v":14},"Izvedba meritev temperatur prostorov."]
[null,null,"kpl",1,null,{"$f":"D59*E59","v":0}]
[]
[{"$f":"COUNT($A$2:A60)+1","v":15},"Pripravljalna in zaključna dela ter hladen tlačni preizkus z hladnim vodnim tlakom 4 bar."]
[null,null,"kpl",1,null,{"$f":"D62*E62","v":0}]
[]
[{"$f":"COUNT($A$2:A63)+1","v":16},"Polnjenje, poskusno obratovanje in regulacija sistema ogrevanja."]
[null,null,"kpl",1,null,{"$f":"D65*E65","v":0}]
[]
[{"$f":"COUNT($A$2:A66)+1","v":17},"Izdelava shem in navodil za sistem ogrevanja in hlajenja."]
[null,null,"kpl",2,null,{"$f":"D68*E68","v":0}]
[]
[]
[null,"SKUPAJ [€]:",{"$nulls":3},{"$f":"SUM(F5:F70)","v":0}]
[]
["2.","HLAJENJE "]
[]
[null,"OPOMBA: Pred naročilom preveriti število opreme in preveriti ustreznost pri proizvajalcu."]
[null,"Pred izdelavo ponudbe naj si ponudnik pridobi ustrezne informacije s strani predstavnikov investitorja, nadzora oz. projektanta. Material in oprema morata biti najboljše kvalitete, ustrezati predpisanim standardom o kvaliteti in izvedbi, opremljena z vsemi potrebnimi certifikati in garancijskimi listi ter zaščitena proti mehanskim poškodbam. Skupaj z opremo je potrebno dostaviti tudi vsa tehnična navodila za servisiranje in upravljanje posameznih elementov. V popisu so upoštevani dobava in vgradnja vseh elementov s pomožnim materialom."]
[null,"Pred naročilom materiala in opreme je potrebno pridobiti potrdilo projektanta oz. nadzora strojnih instalacij."]
[]
[null,"VZDRŽEVALNA DELA"]
[]
[{"$f":"COUNT($A$2:A80)+1","v":18},"Servis in čiščenje obstoječih enot VRF sistema."]
[null,null,"kpl",1,null,{"$f":"D82*E82","v":0}]
[]
[{"$f":"COUNT($A$2:A83)+1","v":19},"Prilagoditev lokacij zunanjih enot klima naprav glede na traso predvidenih zunanjih prezračevalnih kanalov, kopletno z drobnim materialom in cevnimi povezavami."]
[null,null,"kpl",1,null,{"$f":"D85*E85","v":0}]
[]
[null,"KKE ENOTE ZA DX V KLIMATU"]
[]
[{"$f":"COUNT($A$2:A88)+1","v":20},"Dobava in montaža:"]
[null,"Zunanja enota klimatskega sistema v split izvedbi z ECO POWER INVERTER kompresorjem, uparjalnikom ter zračno hlajenim kondenzatorjem. Hladilno sredstvo je okolju prijaznejši R32. Stroj je kompletne izvedbe z vso interno cevno in elektro instalacijo, varnostno ter funkcijsko mikroprocesorsko avtomatiko - vključno z instrumenti za nadzor in kontrolo delovanja. Naprava je namenjena za zunanjo postavitev."]
[null,"TEHNIČNI PODATKI:"]
[null,"Nazivna moč: hlajenje: 4.6 (2.3 ~ 5.6) kW // gretje: 5.0 (2.5 ~ 7.3) kW"]
[null,"Energetski razred: SEER: 6.4 - A++ // SCOP: 4.1 - A+ (pri notranjih enotah PKA)"]
[null,"Električna priključna moč: hlajenje 1.24 kW // gretje 1.35 kW"]
[null,"Električni priključek: 230V/1F/50Hz // 16A"]
[null,"Nivo hrupa (SPL): hlajenje: 44 dB(A) - gretje: 46 dB(A)"]
[null,"Nivo hrupa (PWL): 65 dB(A)"]
[null,"Dimenzije (V x Š x G): 630 x 809 x 300 mm"]
[null,"Teža: 46 kg"]
[null,"Medij: R32"]
[null,"Dimenzija priključne instalacije: Cu 6.35/12.7 mm"]
[null,"Max. dolžinska / max. višinska razlika: 50 / 30 m"]
[null,"Območje delovanja: hlajenje od -15°C do +46°C, gretje od -11° do +21°C"]
[null,"Ustreza proizvod MITSUBISHI Electric dobavitelja opreme REAM d.o.o. oz. proizvod drugega proizvajalca enakih ali boljših karakteristik."]
[null,"tip  PUZ-ZM50VKA","kpl",1,null,{"$f":"D105*E105","v":0}]
[]
[{"$f":"COUNT($A$2:A106)+1","v":21},"Regulacijska omarica za sisteme s toplotnimi črpalkami ZRAK/ZRAK proizvajalca Mitsubishi Electric."]
[null,"Omogoča nadzor in regulacijo hlajenja/ogrevanja na podlagi temperature pretoka medija."]
[null,"Omogoča direkten priklop MODBUS protkola za nadzor delovanja."]
[null,"V primeru nadzora več (max. 6) toplotnih črpalk omogoča kaskadno delovanje vseh naprav."]
[null,"Regulacijska omarica vsebuje tipala TH1, TH2, TH5"]
[null,"PROIZVAJALEC: Mitsubishi Electric, Velika Britanija"]
[null,"UVOZNIK: REAM d.o.o., Trzin"]
[]
[null,"TEHNIČNI PODATKI:"]
[null,"- dimenzija enote (VxDxG) 422 x 393 x 86,7 mm"]
[null,"- teža enote: cca. 3 kg"]
[null,"- električno napajanje 1F/220V/50Hz"]
[null,"- za montažo v prostoru z max. RH 80%"]
[null,"Ustreza proizvod MITSUBISHI Electric dobavitelja opreme REAM d.o.o. oz. proizvod drugega proizvajalca enakih ali boljših karakteristik."]
[null,"tip  PAC-IF013B-E","kpl",1,null,{"$f":"D121*E121","v":0}]
[]
[{"$f":"COUNT($A$2:A122)+1","v":22},"Bakrene cevi, predizolirane z ARMSTRONG AC 9 s fazonskimi kosi, z materialom za lotanje, s tesnilnim in obešalnim materialom, z dodatkom za razrez, po VDI 2035, DIN 18380                                                                      \n"]
[null,"Cu 6,35                    ","m",8,null,{"$f":"D124*E124","v":0}]
[null,"Cu 12,7  ","m",8,null,{"$f":"D125*E125","v":0}]
[]
[{"$f":"COUNT($A$2:A126)+1","v":23},"Dobava in montaža elektro in signalnih kablov za povezavo med notranjimi in zunanjimi napravami"]
[null,"- 0,75mm2×2 oklopljen kabel za signal","m",8,null,{"$f":"D128*E128","v":0}]
[null,"- 1,5mm2×2 oklopljen kabel za signal","m",8,null,{"$f":"D129*E129","v":0}]
[]
[{"$f":"COUNT($A$2:A130)+1","v":24},"Montaža zunanje enote "]
[null,"DO 8 m instalacije - Cu izolirane cevi: 3/8\", 3/4\""]
[null,"- postavitev naprave na pripravljen temelj ali na konzolo"]
[null,"- odvod kondenza iz zunanje enote do 1m oddaljenosti od enote"]
[null,"- povezava TČ z izmenjevalcem toplote"]
[null,"- zagon s preizkusnim delovanjem"]
[null,"- pripravljalna, zarisovalna in zaključna dela"]
[null,"- transportni stroški"]
[null,"- navodila v slovenskem jeziku"]
[null,"Opomba: vsa dodatna dela oz. elementi se obračunajo po izvedbi!"]
[null,null,"kpl",1,null,{"$f":"D141*E141","v":0}]
[]
[null,"Montaža regulacijske omarice (za KLIMAT)"]
[null,"- montaža naprave"]
[null,"- priklop cevnih instalacij na DX enoto"]
[null,"- priklop LEV kita na instalcijo"]
[null,"- montaža in priklop signalnega kabla"]
[null,"- montaža in priklop elektro kabla"]
[null,null,"kpl",1,null,{"$f":"D149*E149","v":0}]
[]
[{"$f":"COUNT($A$2:A150)+1","v":25},"Zagon sistema"]
[null,"- nastavitev parametrov delovanja"]
[null,"- poskusni zagon in pregled poskusnega delovanja"]
[null,"- poučevanje osebja"]
[null,null,"kpl",1,null,{"$f":"D155*E155","v":0}]
[]
[null,"OSTALO"]
[]
[]
[{"$f":"COUNT($A$2:A159)+1","v":26},"Material za obešanje in pritrjevanje iz profilnega jekla različnih dimenzij, antikorozijsko zaščiten in opleskan."]
[null,null,"kg",40,null,{"$f":"D161*E161","v":0}]
[]
[{"$f":"COUNT($A$2:A162)+1","v":27},"Vrtanje lukenj, izdelava različnih utorov in druga gradbena dela za nemoteno izvedbo instalacije.\n"]
[null,"(OCENA)","ur",10,null,{"$f":"D165*E165","v":0}]
[]
[{"$f":"COUNT($A$2:A165)+1","v":28},"Tesnenje vseh odprtin prebojev negorljivih cevi z izolacijo požarne odpornosti do 120 minut. (Točno število preveriti na objektu ob izvedbi)"]
[null,null,"kpl",1,null,{"$f":"D168*E168","v":0}]
[]
[{"$f":"COUNT($A$2:A168)+1","v":29},"Izvedba meritev temperatur prostorov."]
[null,null,"kpl",1,null,{"$f":"D171*E171","v":0}]
[]
[{"$f":"COUNT($A$2:A171)+1","v":30},"Polnjenje, poskusno obratovanje in regulacija sistema ogrevanja in hlajenja."]
[null,null,"kpl",1,null,{"$f":"D174*E174","v":0}]
[]
[{"$f":"COUNT($A$2:A174)+1","v":31},"Izdelava shem in navodil za sistem ogrevanja in hlajenja."]
[null,null,"kpl",2,null,{"$f":"D177*E177","v":0}]
[]
[]
[{"$f":"COUNT($A$2:A178)+1","v":32},"Dobava in vgradnja napisnih ploščic za označitev elementov, vključno z napisi in pritrdilnim materialom."]
[null,null,"kos",30,null,{"$f":"D181*E181","v":0}]
[]
[{"$f":"COUNT($A$2:A180)+1","v":33},"Izdelava zapisnikov o vseh preizkusih in meritvah po pooblaščeni organizaciji."]
[null,null,"kpl",1,null,{"$f":"D184*E184","v":0}]
[]
[null,"SKUPAJ [€]:",{"$nulls":3},{"$f":"SUM(F75:F184)","v":0}]
[]
["3.","PREZRAČEVANJE"]
[]
[null,"Pred naročilom preveriti število opreme in preveriti ustreznost pri proizvajalcu.\nPred izdelavo ponudbe naj si ponudnik pridobi ustrezne informacije s strani predstavnikov investitorja. Material in oprema morata biti najboljše kvalitete, ustrezati predpisanim standardom o kvaliteti in izvedbi, opremljena z vsemi potrebnimi certifikati in garancijskimi listi ter zaščitena proti mehanskim poškodbam. Skupaj z opremo je potrebno dostaviti tudi vsa tehnična navodila za servisiranje in upravljanje posameznih elementov. V popisu so upoštevani dobava in vgradnja vseh elementov s pomožnim materialom."]
[]
[]
[null,"Pred naročilom posamezne strojne naprave in opreme je potrebno pred dobavo še enktrat preveriti vse tehnične karakteristike in ustreznost predvidenih naprav ter na objektu samem preveriti lokacija predvidene nove naprave, gaberite prostora,  vgradne dimenzije novih naprav, izvedljivost vgradnje, kritične odprtine (vrata, hodnike) zaradi vnosa naprave ter vsa priklopna mesta."]
[]
[{"$f":"COUNT($A$2:A193)+1","v":34},"Dobava, montaža in zagon kompaktne klimatske naprave z naslednjimi karakteristikami:  "]
[null,"Kompaktna klimatska naprava za dovod svežega zraka in odvod izrabljenega zraka. Naprava je horizontalne izvedbe s priključki s strani in za ZUNANJO postavitev na tla. Krmilna oprema je integrirana v napravi."]
[null,"Ohišje:\nIzdelano v dvostenski izvedbi s stenami iz pocinkane jeklene pločevine, zaščitene s prevleko Magnelis (MgZn) in z vmesno izolacijo iz mineralne volne debeline 50 mm.\n- zaščita pred korozijo: razred C5\n- mehanska stabilnost: razred D2\n- faktor toplotne prehodnosti: T2 po EN 1886\n- faktor toplotnih mostov: TB2 po EN 1886"]
[null,"Filtri:\n- vrečasti filter F7 dovod\n- vrečasti filter M5 odvod"]
[null,"Ventilatorji:\nEnergijsko učinkovit dovodni in odvodni ventilator z varčnim EC motorjem in zvezno regulacijo pretoka."]
[null,"Rekuperator:\nVisoko-učinkovit protitočni ploščni rekuperator z izkoristkom do 90% in by-pass loputo s pogonom."]
[]
[null,"Kontrolna omarica je locirana zunaj naprave na ohišju, kar omogoča lažje upravljanje in priključitev zunanjih komponent. Vsa tipala so integrirana v napravi."]
[null,"Digitalni krmilnik na dotik omogoča številne načine temperaturne in pretočne regulacije, rekuperacijo v poletnem in zimskem času, prosto in nočno hlajenje, delovanje po tedenskem urniku, nadzor zamazanosti filtrov, nadzor nad delovanjem delov in funkcijami, besedilne alarme na LCD posluževalnem zaslonu na dotik. Dinamična funkcijska shema na zaslonu omogoča vizualno spremljanje parametrov v obratovanju.\nMeni v slovenskem jeziku."]
[null,"Regulacijski sistem ima vgrajen WEB server ter je povezljiv na CNS preko ModBUS-a."]
[]
[null,"Tehnične karakteristike:\n- napajanje: 1x230V; 16 A, 1.64 kW\n- dovod zraka: 900 m3/h, 200 Pa\n- odvod zraka: 900 m3/h, 200 Pa\n- toplotni izkoristek rekuperatorja: 83,4%\n- dimenzije: 2000x775x1318 mm\n- teža: 261 kg"]
[]
[null,"Dodatna oprema: \n- zaporna loputa z vzmetnim motornim pogonom: \nTUNE-R-315-LF24   -   2 kos\n- kanalski dx izmenjevalec z banico za kondenz in izločevalnikom kapljic:\nDXRE 50-25-3-2,5  - 1 kos"]
[null,"Naprava ustreza Ecodesign direktivi za 2016 in 2018 in spada v A+ energijski razred. Naprava ima Eurovent certifikat."]
[null,"Ustreza prezračevalna naprava ponudnika SYSTEMAIR oz. proizvod drugega proizvajalca enakih ali boljših karakteristik."]
[null,"Tip: Topvex SC20-L-B","kpl",1,null,{"$f":"D211*E211","v":0}]
[]
[{"$f":"COUNT($A$2:A211)+1","v":35},"Dvig prezračevalne naprave na objekt z Avotodvigalom (do 22m višine in 10m globine) in postavitev prezračevalne naprave na objektu, skupaj z dušilci zvoka in grelno/hladilnim elementom."]
[null,null,"kpl",1,null,{"$f":"D214*E214","v":0}]
[]
[{"$f":"COUNT($A$2:A214)+1","v":36},"Zagon naprave in šolanje uporabnika"]
[null,"Zagon na objektu in priučitev vzdrževalnega osebja."]
[null,null,"kpl",1,null,{"$f":"D218*E218","v":0}]
[]
[{"$f":"COUNT($A$2:A218)+1","v":37},"Dobava in montaža dušilnik zvoka okrogle izvedbe za zunanjo montažo, sestavljen iz ohišja iz pocinkane pločevine, polnila  iz  mineralne  volne,  zaščitene  s  celulozno  folijo, z vsem pritrdilnim in tesnilnim materialom."]
[null,"Ustreza proizvod KLIMA NAPRAVE DOLINAR d.o.o., oz. proizvod drugega proizvajalca enakih ali boljših karakteristik."]
[null,"tip DZO, dim.: f315; l=900 mm, s=100 mm","kpl",4,null,{"$f":"D222*E222","v":0}]
[]
[{"$f":"COUNT($A$2:A222)+1","v":38},"Dobava in montaža vrtinčnega difuzorja za dovod/ odvod zraka, za vgradnjo v spuščeni strop ali na prezračevalni kanal. Z priključno komoro in stranskimi priključki, vključno z regulacijskim elementom (regulacijska loputa pred gibljivo cevjo) vključno s tesnilnim in pritrdilnim materialom."]
[null,"Ustreza proizvod  proizvajalca BOSSPLAST oz. proizvod drugega proizvajalca enakih ali boljših karakteristik."]
[null,"tip BD-8-K-500/16-Z","kos",3,null,{"$f":"D226*E226","v":0}]
[null,"tip BD-8-K-500/16-A","kos",1,null,0]
[]
[{"$f":"COUNT($A$2:A227)+1","v":39},"Aluminijaste odvodne rešetke za vgradnjo v kanal ali v priključno komoro za v spuščen strop, z nastavkom za regulacijo pretočne količine zraka in enojno usmeritev, za odvod zraka, skupaj s tesnilnim in montažnim materialom."]
[null,"Ustreza proizvod  proizvajalca BOSSPLAST oz. proizvod drugega proizvajalca enakih ali boljših karakteristik."]
[null,"tip DA-O-300x100","kos",3,null,{"$f":"D231*E231","v":0}]
[null,"tip DA-O-400x100","kos",2,null,0]
[null,"tip DA-O-400x150","kos",2,null,0]
[]
[{"$f":"COUNT($A$2:A233)+1","v":40},"Dobava in montaža zaščitne rešetke, z vsem pritrdilnim in tesnilnim materialom."]
[null,"tip f315","kos",2,null,{"$f":"D236*E236","v":0}]
[]
[{"$f":"COUNT($A$2:A236)+1","v":41},"Dobava in montaža ročne pravokotne dušilne lopute, izdelana iz pocinkane pločevine, vgrajena v kanal za dovod in odvod zraka, namenjena za regulacijo količine zraka, skupaj s tesnilnim in montažnim materialom."]
[null,"dim.: 160x125","kos",1,null,{"$f":"D239*E239","v":0}]
[null,"dim.: 160x160","kos",6,null,0]
[null,"dim.: 200x160","kos",2,null,0]
[]
[{"$f":"COUNT($A$2:A241)+1","v":42},"Fleksibilna cev za dovod / odvod zraka, izdelana iz petslojne laminarne aluminijaste folije in jeklene žične spirale, s tovarniško toplotno izolacijo debeline 25 mm v zunanjem plašču, skupaj s samolepilnim aluminijastim tesnilnim trakom in kovinskimi objemnimi spojkami."]
[null,"SONODEC ∅160","m",12,null,{"$f":"D244*E244","v":0}]
[]
[{"$f":"COUNT($A$2:A244)+1","v":43},"Zračni kanali pravokotnega preseka, izdelani iz pocinkane pločevine nazivne velikosti in debeline po SIST EN 1505 oziroma po DIN 24190 in 24191 (11.85), stopnje 10 (±1000 Pa), oblike F (vzdolžno zarobljeni), med seboj so spojeni prirobnično. V kolikor se pokaže za potrebno, so na posebnih mestih vsled ohranitve čim višjih etažnih višin spoji izvedeni s \"S\" pasom. Pri vseh spremembah smeri za več kot 30 ° so v loke ali kolena vstavljanja vodila, ki se namestijo na 1/4 do 1/3 širine loka oziroma kolena."]
[null,"Na posebno kritičnih točkah so v zavojih z velikimi hitrostmi (>7/m/s) nameščena v loke in kolena dvodebelinska vodila. Na vseh glavnih odcepih dovodnih in odvodnih kanalov, so vgrajene nastavljive usmerne oziroma regulacijske lopute. Zračni kanali so pri večjih nazivnih velikostih diagonalno izbočeni ali ojačani z blagim izmeničnim vbočenjem in izbočenjem. Debelina pločevine glede na širino stranic znaša:"]
[null,"100-250 mm                        0,6 mm"]
[null,"265-530 mm                        0,6 mm"]
[null,"560-1000 mm                      0,8 mm"]
[null,"1060-2000 mm                    1,0 mm"]
[null,"Zahtevana je posebno povišana zračna tesnost II. razreda (na primer pri tlačni razliki ±400 pa znaša dovoljeno puščanje zraka 1,32*10-3 m3/sm2) po DIN 24194, 2. del (11.85) oziroma enako po normativu SIST prEN 1507 za tesnostni razred A.) Pri sami izvedbi se upoštevajo higienske zahteve za srednjo stopnjo čistosti prezračevalno-klimatskega sistema po smernicah VDI 6022, 1. del in/oziroma SIST ENV 12097, ki zahteva v točki C3.3 predvsem skladiščenje vseh elementov sistema med gradnjo na pred prahom zaščitenem, suhem in čistem mestu, brisanje do čistega vseh notranjih površin kanalov pred montažo, ščitenje navpičnih kanalskih vodov pred padajočo nesnago in delci, ter zapiranje odprtih koncev in delov kanalov po posamezni prekinitvi montažnih del. Skupna površina zračnih kanalov, skupaj z obešalnim in pritrdilnim materialom z lastnostmi po SIST prEN 12236"]
[null,null,"kg",850,null,{"$f":"D253*E253","v":0}]
[]
[{"$f":"COUNT($A$2:A253)+1","v":44},"Zračni kanali okroglega preseka, izdelani z pocinkane pločevine po DIN 1946, kompletno s fazonskimi kosi, kolenskimi usmerniki, regulacijskimi loputami, dodatkom za odrez, tesnilnim in obešalnim materialom.\nZahtevana je posebno povišana zračna tesnost II. razreda L2(B) (na primer pri tlačni razliki ±400 pa znaša dovoljeno puščanje zraka 0,44*10-3 m3/sm2) po DIN 24194, 2. del (11.85) oziroma enako po normativu SIST prEN 1507 za tesnostni razred B.) Pri sami izvedbi se upoštevajo higienske zahteve za srednjo stopnjo čistosti prezračevalno-klimatskega sistema po smernicah VDI 6022, 1. del in/oziroma SIST ENV 12097, ki zahteva v točki C3.3 predvsem skladiščenje vseh elementov sistema med gradnjo na pred prahom zaščitenem, suhem in čistem mestu, brisanje do čistega vseh notranjih površin kanalov pred montažo, ščitenje navpičnih kanalskih vodov pred padajočo nesnago in delci, ter zapiranje odprtih koncev in delov kanalov po posamezni prekinitvi montažnih del. "]
[null,"∅315","m",14,null,{"$f":"D256*E256","v":0}]
[]
[{"$f":"COUNT($A$2:A256)+1","v":45},"Toplotna izolacija dovodnih zračnih kanalov debeline 19 mm, z naslednjimi karakteristikami:"]
[null,"Dobava in montaža elastomerne fleksibilne izolacije na osnovi sintetičnega kavčuka za izolacijo cevovodov, zračnih kanalov, rezervoarjev, ventilov, fitingov, prirobnic v hladilni in klimatski tehniki in procesni industriji za preprečevanje kondenzacije in energijske prihranke. EU požarna klasifikacija B-s3,d0; toplotna prevodnost λ pri 0°C je 0,035 W/m.K ( plošče debeline 6mm do 25mm in cevi debeline 6mm do 25mm; za ostale debeline cevi in plošč je  λ pri 0°C  0,038 W/m.K; koef. upora difuziji vodne pare je 10.000; za temp. območje od -50°C  do  +110°C; trakovi in plošče lepljeni na površino do maks. +85°C. Toplotne mostove potrebno zaščititi s cevnimi nosilci Armafix AF  oziroma Armafix X. Spoje (vzdožne, prečne, površino) potrebno lepiti z original Armaflex lepilom,  za čiščenje orodja, rok in razmaščevanje pa Armaflex Čistilo. CE certifikat v skladu z EN 14304."]
[null,"Komplet z dobavo in montažo."]
[null,"Ustreza proizvod Armacell Armaflex oz. proizvod enakih ali boljših karakteristik."]
[null,"tip ACE/P-19-99-E","m2",null,null,{"$f":"D262*E262","v":0}]
[]
[{"$f":"COUNT($A$2:A262)+1","v":46},"Toplotna izolacija kanalov  za dovod in odvod zraka, ki so na prostem, komplet s tesnilnim in pritrdilnim materialom."]
[null,"DOVODNI in ODVODNI KANALI: \n- Toplotna in protikondenzna izolacija kanalov za dovod zraka, Armaflex ACE Plus debeline 19 mm, s certifikatom o skladnosti, težko gorljiva in samougasljiva, s toplotno prevodnostjo l < 0,035 W/mK pri 0 st.C, za temp. območje -50 do +85 st.C, samolepljive, neskončne plošče. \n- Obloga iz tervola v ploščah oznaka DP-10 debeline 6 cm, gostota 100 kg/m3, odporen na mehanske obremenitve.\n- zaščita z AL pločevino 1 mm.\n- vsi spoji morajo biti kitani","m2",null,null,{"$f":"D265*E265","v":0}]
[]
[{"$f":"COUNT($A$2:A265)+1","v":47},"Preizkus tesnosti kanalske mreže pred izdelavo odprtin za distributivne elemente, z uporabo dimnih patron in ustvarjanjem nadtlaka v kanalskih mrežah."]
[null,null,"kpl",null,null,{"$f":"D268*E268","v":0}]
[]
[{"$f":"COUNT($A$2:A268)+1","v":48},"Izdelava tehnološkega  načrta montaže prezračevalnih kanalov z montažnimi skicami s strani ponudnika, izvajlaca in dobavitelja prezračevalnih kanalov z medsebojno uskladitvijo vseh izvajalcev del, organizacije gradbišča, časovnega načrta del,potrjenega s strani vseh udeležencev gradnje"]
[null,null,"kpl",null,null,{"$f":"D271*E271","v":0}]
[]
[{"$f":"COUNT($A$2:A271)+1","v":49},"Izdelava montažnih skic in postavitvenih detajlov za prezračevalne kanale in prezračevalne klimatske naprave za izvedbo instalacij med gradnjo na podlagi izbrane in potrjene opreme."]
[null,null,"kpl",null,null,{"$f":"D274*E274","v":0}]
[]
[{"$f":"COUNT($A$2:A274)+1","v":50},"Preizkusi in meritev sistema prezračevanja in klimatizacije po zahtevah in obsegu SIST EN 12599:2001, s predajo zapisnika, izdelanega s strani neodvisnega podjetja, v vseh letnih obdobjih!"]
[null,null,"kpl",null,null,{"$f":"D277*E277","v":0}]
[]
[{"$f":"COUNT($A$2:A277)+1","v":51},"Izvedba preizkusnega obratovanja v obsegu:"]
[null,"- delovanje  prezračevalnih klimatskih naprav"]
[null,"- delovanje avtomatske regulacije,"]
[null,"- pregled delovanja ventilatorjev in elementov regulacije."]
[null,"- Poizkusno obratovanje traja neprekinjeno 72 ur, ter optimizacija vseh naprava prezračevanja"]
[null,null,"kpl",null,null,{"$f":"D284*E284","v":0}]
[]
[{"$f":"COUNT($A$2:A284)+1","v":52},"Tehnično sodelovanje z ustrezno usposobljenim izvajalskim osebjem ter pooblaščenimi serviserji pomembnejše\nstrojno instalacijske opreme in naprav pri izvedbi dveh sklopov:\n- garancijskih meritev ter\n- speljavi postopka usposobitve."]
[null,null,"kpl",null,null,{"$f":"D287*E287","v":0}]
[]
[{"$f":"COUNT($A$2:A287)+1","v":53},"Nastavitev distribucijskih elementov in količin zraka skozi posamezno prezračevalno klimatsko napravo ter ventilatorje ter izdelava vseh preskusov in merilnih metod za predajo vgrajenih prezračevalno-klimatskih sistemov po zahtevah SIST EN 12599 (12.01) z izdelavo zapisnikov."]
[null,null,"kpl",null,null,{"$f":"D290*E290","v":0}]
[]
[{"$f":"COUNT($A$2:A290)+1","v":54},"Sodelovanje z izvajalci elektro instalacij v času izvajanja, funkcionalni zagon, poskusno obratovanje."]
[null,null,"kpl",null,null,{"$f":"D293*E293","v":0}]
[]
[{"$f":"COUNT($A$2:A293)+1","v":55},"Izolacija vseh kanalov, ki niso izolirani, pri prehodu skozi gradbeno konstrukcijo zaradi prenosa hrupa in vibracij, vključno s pritrdilnim materialom."]
[null,"preveriti na objektu samam!!","kpl",null,null,{"$f":"D296*E296","v":0}]
[]
[{"$f":"COUNT($A$2:A296)+1","v":56},"Zaščitno barvanje vseh nezaščitenih delov prezračevalnega sistema (obešala, nosilni material) po predhodnem čiščenju in grundiranju."]
[null,null,"kpl",null,null,{"$f":"D299*E299","v":0}]
[]
[{"$f":"COUNT($A$2:A299)+1","v":57},"Nastavitev in optimizacija prezračevalne naprave."]
[null,null,"kpl",null,null,{"$f":"D302*E302","v":0}]
[]
[{"$f":"COUNT($A$2:A302)+1","v":58},"Šolanje uporabnika za rokovanje s posamezno prezračevalno napravo ter posameznimmodvodnim ventilatorjem."]
[null,null,"kpl",null,null,{"$f":"D305*E305","v":0}]
[]
[{"$f":"COUNT($A$2:A305)+1","v":59},"Volumska nastavitev rešetk in difuzorjev prezračevalnega sistema in meritve prezračevanja."]
[null,null,"kpl",null,null,{"$f":"D308*E308","v":0}]
[]
[{"$f":"COUNT($A$2:A308)+1","v":60},"Preizkus tesnosti kanalske mreže pred izdelavo odprtin za distributivne elemente, ter čistilne odprtine z uporabo dimnih patron in ustvarjanjem nadtlaka v kanalskih mrežah."]
[null,null,"kpl",null,null,{"$f":"D311*E311","v":0}]
[]
[{"$f":"COUNT($A$2:A311)+1","v":61},"Meritve mikroklimatskih razmer in šumnosti v posameznih prostorih po njihovih zahtevah po posameznem prostoru, s strani pooblaščenega podjetja, ob letnih in zimskih obremenitvah, z izdajo pozitivnega poročila."]
[null,null,"kpl",null,null,{"$f":"D314*E314","v":0}]
[]
[{"$f":"COUNT($A$2:A314)+1","v":62},"Izdelava označb vgrajenih elementov ter navodil za varno obratovanje in vzdrževanje vseh vgrajenih naprav. Označbe naj bodo izdelane iz kvalitetnih in obstojnih materialov, napisi morajo biti razločni in in narejeni z obstojno barvo."]
[null,null,"kpl",null,null,{"$f":"D317*E317","v":0}]
[]
[]
[null,"SKUPAJ [€]:",{"$nulls":3},{"$f":"SUM(F188:F318)","v":0}]
[]
["4.","KOMPRIMIRAN ZRAK"]
[]
[null,"OPOMBA: Pred naročilom preveriti število opreme in preveriti ustreznost pri proizvajalcu."]
[]
[{"$f":"COUNT($A$2:A324)+1","v":63},"Zapora obstoječega sistema stisnjenega zraka."]
[null,null,"kpl",null,null,{"$f":"D327*E327","v":0}]
[]
[{"$f":"COUNT($A$2:A327)+1","v":64},"Prilagoditev oziroma ukinitev obstoječih priključkov za stisnjen zrak."]
[null,null,"kpl",null,null,{"$f":"D330*E330","v":0}]
[]
[{"$f":"COUNT($A$2:A330)+1","v":65},"Priklop novih razvodov na obstoječ sistem."]
[null,null,"kpl",null,null,{"$f":"D333*E333","v":0}]
[]
[{"$f":"COUNT($A$2:A332)+1","v":66},"Aluminjaste cevi sistem Prevost ALR za cevovod komprimiranega zraka, maksimalnega delavnega tlaka 13 bar s fazonskimi kosi, T-kosi, reducirnimi kosi ter obešalnim, pritrdilnim in tesnilnim materialom"]
[null,"Glavni vod cevovoda se izdela v zanko!"]
[null,"Ustreza proizvod  OMEGA AIR oz. proizvod drugega proizvajalca enakih ali boljših karakteristik."]
[null,"ø 20 - odcepi (DN15)","m",null,null,{"$f":"D338*E338","v":0}]
[]
[{"$f":"COUNT($A$2:A338)+1","v":67},"Kroglični ventili sistem ALR, z vsem pritrdilnim in tesnilnim materialom."]
[null,"Ustreza proizvod  OMEGA AIR oz. proizvod drugega proizvajalca enakih ali boljših karakteristik."]
[null,"tip ALR RI 20","kos",null,null,{"$f":"D342*E342","v":0}]
[]
[{"$f":"COUNT($A$2:A342)+1","v":68},"Dobava in montaža hitro spojni ventil Prevost ERG 071153, DN15 s profilom priključka 7.2-7.4"]
[null,"Ustreza proizvod  OMEGA AIR oz. proizvod drugega proizvajalca enakih ali boljših karakteristik."]
[null,"tip ERG 071153","kos",null,null,{"$f":"D346*E346","v":0}]
[]
[{"$f":"COUNT($A$2:A346)+1","v":69},"Spiralna cev PU s priključki (medenina) fi 10 x 6,5, 10m, brez izteka"]
[null,"Ustreza proizvod  OMEGA AIR oz. proizvod drugega proizvajalca enakih ali boljših karakteristik."]
[]
[{"$f":"COUNT($A$2:A348)+1","v":70},"Sodelovanje z izvajalci elektro instalacij v času izvajanja, funkcionalni zagon, poskusno obratovanje."]
[null,null,"kpl",null,null,{"$f":"D352*E352","v":0}]
[]
[{"$f":"COUNT($A$2:A352)+1","v":71},"Izdelava načrta izvedenih del (PID), pri čemer kot osnova za izdelavo služijo vrisane in potrjene spremembe med gradnjo s strani odgovornega nadzornika. Načrtu je potrebno priložiti projekt za obratovanje in vzdrževanje (kratka navodila), za posamezne sklope pa izvajalec preda navodila direktno investitorju."]
[null,null,"kpl",null,null,{"$f":"D355*E355","v":0}]
[]
[{"$f":"COUNT($A$2:A354)+1","v":72},"Izdelava označb vgrajenih elementov ter navodil za varno obratovanje in vzdrževanje vseh vgrajenih naprav."]
[null,null,"kpl",null,null,{"$f":"D358*E358","v":0}]
[]
[{"$f":"COUNT($A$2:A358)+1","v":73},"Pripravljalna in zaključna dela, zarisovanje, regulacija armatur in avtomatike ter tlačni preizkus z hladnim vodnim tlakom 4 bar (oz.1,3kratni delovni tlak)."]
[null,null,"kpl",null,null,{"$f":"D361*E361","v":0}]
[]
[null,null,"kpl",null,null,{"$f":"D363*E363","v":0}]
[]
[]
[{"$f":"COUNT($A$2:A364)+1","v":74},"Transportni, manipulativni stroški in nepredvidena dela so zajeta v ceni elementov ogrevnega in hladinega sistema."]
[]
[null,"SKUPAJ €:",{"$nulls":3},{"$f":"SUM(F323:F366)","v":0}]
[]
["5.","INTERNA VODOVODNA INSTALACIJA "]
[]
[null,"OPOMBA: Pred naročilom preveriti število opreme in preveriti ustreznost pri proizvajalcu."]
[null,"Za vsa komercialna imena velja kot na primer ali enakovredne kakovosti in funkcije ter podobnega videza in enakih dimenzij."]
[null,"Pred izdelavo ponudbe naj si ponudnik pridobi ustrezne informacije s strani predstavnikov investitorja, nadzora oz. projektanta. Material in oprema morata biti najboljše kvalitete, ustrezati predpisanim standardom o kvaliteti in izvedbi, opremljena z vsemi potrebnimi certifikati in garancijskimi listi ter zaščitena proti mehanskim poškodbam. Skupaj z opremo je potrebno dostaviti tudi vsa tehnična navodila za servisiranje in upravljanje posameznih elementov. V popisu so upoštevani dobava in vgradnja vseh elementov s pomožnim materialom."]
[]
[null,"DEMONTAŽNA DELA"]
[]
[{"$f":"COUNT($A$2:A376)+1","v":75},"Izvedba zapore sistema VODOVODNE INSTALACIJE, na katerih se bo upravljal poseg predelave in prilagoditve, z organizacijo obveščanja upravitelja oziroma vzdrževalca sistema."]
[null,null,"kpl",null,null,{"$f":"D379*E379","v":0}]
[]
[{"$f":"COUNT($A$2:A379)+1","v":76},"Demontaža izlivnih mest in sanitarne keramike v prostoru, kjer se bo izvajal obseg predelave."]
[null,"kuhinjsko korito","kpl",null,null,{"$f":"D382*E382","v":0}]
[null,"umivalnik","kpl",null,null,0]
[]
[{"$f":"COUNT($A$2:A383)+1","v":77},"Demontaža izolacije iz horizontalne odtočne cevi in priprava cevi za ponovno izolacijo."]
[null,null,"kpl",null,null,{"$f":"D386*E386","v":0}]
[]
[{"$f":"COUNT($A$2:A386)+1","v":78},"Prestavitev hidrantne cevi proti zunanji steni. Material je zajet s svojo postavko."]
[]
[{"$f":"COUNT($A$2:A388)+1","v":79},"Demontaža obstoječe drobne sanitarne opreme."]
[null,null,"kpl",null,null,{"$f":"D391*E391","v":0}]
[]
[{"$f":"COUNT($A$2:A391)+1","v":80},"Demontaža izolacije za pocinkane navojne cevi za sanitarno vodo in odvoz na deponijo."]
[null,null,"m",null,null,{"$f":"D394*E394","v":0}]
[]
[{"$f":"COUNT($A$2:A394)+1","v":81},"Demontaža vsega drobnega materiala."]
[null,null,"kpl",null,null,{"$f":"D397*E397","v":0}]
[]
[{"$f":"COUNT($A$2:A397)+1","v":82},"Odvoz odvečnega materiala na deponijo."]
[null,null,"kpl",null,null,{"$f":"D400*E400","v":0}]
[]
[null,"NOVO"]
[]
[null,"Kompleten umivalnik, sestoječ iz: "]
[null,"umivalnik iz keramike I. klase "]
[null,"medeninastim pokromanim odtočnim ventilom f 32 mm s čepom na verižici,"]
[null,"medeninastim pokromanim \"S\" sifonom f 32 z zidno rozeto,"]
[null,"kompletno z vsem vezalnim materialom, konzolami, podložkami, pritrdilnim in tesnilnim materialom."]
[null,"Točen tip in dimenzijo pred naročilom poda arhitekt oziroma investitor."]
[null,null,"kpl",null,null,{"$f":"D410*E410","v":0}]
[]
[{"$f":"COUNT($A$2:A410)+1","v":83},"Stoječa enoročna mešalna baterija za umivalnik za toplo in hladno vodo, vključno s kotnimi ventili in zidnimi rozetami;"]
[null,"Tip pred naročilom poda arhitekt oziroma investitor.","kpl",null,null,{"$f":"D413*E413","v":0}]
[]
[{"$f":"COUNT($A$2:A413)+1","v":84},"Komplet garnitura za enojno ali dvojno pomivalno korito sestavljena iz:"]
[null,"izlivna garnitura izdelana iz PVC z lovilcem nečistoč,"]
[null,"izdelave PVC priključka F50 pred montažo korita zaščitenega s čepom,"]
[null,"stoječa enoročna mešalna baterija za toplo in hladno vodo s premičnim iztokom in perlatorjem, vključno s kotnimi ventili in zidnimi rozetami;"]
[null,"kompletno z vsem vezalnim materialom, konzolami, podložkami, pritrdilnim in tesnilnim materialom."]
[null,"Tip in dimenzijo pred naročilom poda arhitekt oziroma investitor.","kpl",null,null,{"$f":"D420*E420","v":0}]
[]
[null,"Pocinkana navojna cev za sanitarno hladno vodo, skupaj z vsemi fitingi, tesnilnim in pritrdilnim materialom ter dodatkom na odrez."]
[null,"DN15","m",null,null,{"$f":"D423*E423","v":0}]
[null,"DN65","m",null,null,0]
[]
[{"$f":"COUNT($A$2:A424)+1","v":85},"Dobava in montaža Armaflex ACE PLUS elastomerne fleksibilne izolacije iz elastomerne pene na osnovi sintetične gume za izolacijo cevovodov hladne, tople vode, cirkulacije in kanalizacije, zračnih kanalov, rezervoarjev, ventilov, fitingov, prirobnic v hladilni in klimatski tehniki in procesni industriji za preprečevanje kondenzacije in energijske prihranke. EU požarna klasifikacija B-s3,d0; toplotna prevodnost λ pri 0°C je 0,035 W/m; koef. upora difuziji vodne pare je 10.000; za temp. območje od -50°C  do  +110°C; trakovi in plošče lepljeni na površino do maks. +85°C. Toplotne mostove potrebno zaščititi s cevnimi nosilci Armafix AF  oziroma Armafix X. Spoje (vzdožne, prečne, površino) potrebno lepiti z original Armaflex lepilom,  za čiščenje orodja, rok in razmaščevanje pa Armaflex Čistilo. "]
[null,"CE certifikat v skladu z EN 14304. Na zunanjih instalacijah je izolacijo potrebno zaščititi z:  Armafinish 99 - zaščitni premaz v beli in sivi barvi  ali z oblogo Arma-Chek."]
[]
[null,"HLADNA VODA"]
[]
[null,"XG-09x022","m",null,null,{"$f":"D431*E431","v":0}]
[null,"XG-09x076","m",null,null,0]
[]
[null,"TOPLA VODA IN CIRKULACIJA"]
[]
[null,"XG-13x022","m",null,null,{"$f":"D436*E436","v":0}]
[null,"XG-13x076","m",null,null,0]
[]
[null,"KANALIZACIJA (horizontalna vidna)"]
[]
[null,"XG-13x108","m",null,null,{"$f":"D441*E441","v":0}]
[]
[{"$f":"COUNT($A$4:A441)+1","v":86},"Dobava in montaža PVC kanalizacijske cevi s fazonskimi kosi, kolena, odcepi, čistilni kosi ter vsem pritrdilnim in tesnilnim materialom."]
[null,"f50","m",null,null,{"$f":"D444*E444","v":0}]
[]
[{"$f":"COUNT($A$2:A444)+1","v":87},"Zaporni ventil: dobava in montaža krogelnega zapornega ventila, za vodo do 110°C za tlak PN 10 navojnimi priključki, komplet s tesnilnim in pritrdilnim  materialom."]
[null,"DN15","kos",null,null,{"$f":"D447*E447","v":0}]
[]
[null,"SPLOŠNO"]
[]
[{"$f":"COUNT($A$4:A449)+1","v":88},"Priklop novih cevnih instalacij na obstoječe razvode."]
[null,null,"kpl",null,null,{"$f":"D452*E452","v":0}]
[]
[]
[]
[{"$f":"COUNT($A$2:A454)+1","v":89},"Dobava in montaža konstrukcije iz profilnega jekla za podpore, obešala ter posebne pritrditve, vključno s pritrdilnim materialom, z osnovnim premazom."]
[null,null,"kg",null,null,{"$f":"D457*E457","v":0}]
[]
[{"$f":"COUNT($A$4:A457)+1","v":90},"Zaščitno barvanje vseh nezaščitenih delov sistema (obešala, nosilni material) po predhodnem čiščenju in grundiranju."]
[null,null,"m2",null,null,{"$f":"D460*E460","v":0}]
[]
[{"$f":"COUNT($A$4:A460)+1","v":91},"Poskusno obratovanje in regulacija sistema."]
[null,null,"kpl",null,null,{"$f":"D463*E463","v":0}]
[]
[{"$f":"COUNT($A$4:A463)+1","v":92},"Dobava in vgradnja napisnih ploščic za označitev elementov, vključno z napisi in pritrdilnim materialom."]
[null,null,"kos",null,null,{"$f":"D466*E466","v":0}]
[]
[{"$f":"COUNT($A$4:A466)+1","v":93},"Čiščenje cevne instalacije tople in hladne vode, izvedba klornega šoka oziroma dezinfekcije instalacije, izdaja potrdila s strani pooblaščene institucije."]
[null,null,"kpl",null,null,{"$f":"D469*E469","v":0}]
[]
[]
[null,"SKUPAJ [€]:",{"$nulls":3},{"$f":"SUM(F371:F470)","v":0}]
[]
[null,"STROJNA INSTALACIJSKA OPREMA SKUPAJ",{"$nulls":3},{"$f":"F471+F367+F319+F185+F71","v":0}]

{"sheet":"Elektro - dobava opreme","index":4,"n_rows":89,"n_cols":6,"rows_kept":89,"merged":[[0,1,0,5]]}
[null,"OPOMBA: Elektro instalacijska dela - le dobava materiala in opreme, brez montaže"]
[null,"GLEJ LIST splošni pogoji in opombe"]
[]
[null,"1. EL. INŠTALACIJE ZA JAKI TOK"]
[]
[null,"1.1 SVETILKE"]
["ŠT.","OPIS","ENOTA","KOL.","CENA/ENOTO","SKUPNA CENA"]
[1,"tip S1: HALLA Lipo 80 500B 30GHE LED 41W 840 IP40 - zaprta viseča linijska svetilka z LED virom svetlobe nevtralne barve 4000K, izhodne svetilnosti svetilke 5050 lm, ohišje: prašno lakiran aluminij bele barve, zaprta z mikroprizmatično optiko za omejitev bleščanja za delo z računalniki UGR<19 po EN12464-1, z navzdol usmerjenim srednje širokosnopnim snopom svetlobe, dimenzije 1690x80x93 mm, obratovalnega poteka: 50000h L90, komplet z obešalnim priborom in končnicami, s certifikatom CE, z garancijo 5 let","kos",19,null,{"$f":"D8*E8","v":{"v":0,"d":"0.00 €"}}]
[]
[2,"tip S2: Lena Specto 1200 LED 16W 840 IP40 - nadgradna zaprta svetilka z LED virom svetlobe nevtralne barve svetlobe 4000K, izhodne svetilnosti svetilke 1450 lm, kovinsko ohišje bele barve in mat PMMA optika, dimenzije: 1252x45x84 mm, obratovalne dobe 81000h L70, s certifikatom CE, z garancijo 5 let","kos",4,null,{"$f":"D10*E10","v":{"v":0,"d":"0.00 €"}}]
[]
[3,"tip S3: Trilux Valineo M73 LED 34W 840 ET IP40 -  zaprta stropna svetilka, z LED virom svetlobe nevtralne barve 4000K, barvne kakovosti Ra>80, izhodne svetilnosti svetilke 4250 lm, barvne enakomernosti po McAdam: 3, prašno lakirano kovinsko ohišje bele barve, s širokosnopno mikroprizmatično optiko z omejitvijo bleščanja UGR<19, obratovalnega poteka: 50 000h L80 pri 25  ͦ C, dimenzije svetilke: 595x595x30 mm, komplet z NO 20097 - ohišje za nadgradno montažo M600 energijskega razreda A++, s certifikatom CE,  z garancijo 5 let","kos",2,null,{"v":0,"d":"0.00 €"}]
[]
[4,"tip S4: Trilux Aviella C07 LED 24W 840 IP44 - vgradna zaprta stropna svetilka z LED virom svetlobe nevtralne barve 4000K in barvne kakovosti po RA>80, izhodne svetilnosti svetilke: 2000 lm, zaprta opalno PMMA belo širokosnopno optiko, dimenzije: Ø240x24 mm, potrebni vgradni izrez: Ø 228 mm, predvidene obratovalne dobe min. 35000h, energijskega razreda A++, s certifikatom CE in ENEC, z garancijo 5 let","kos",6,null,{"$f":"D14*E14","v":{"v":0,"d":"0.00 €"}}]
[]
[5,"tip ZS1: Beghelli 4302 UP LED 1,2W SE1H IP65 - nadgradna stenska oz. stropna svetilka zasilne razsvetljave z LED virom svetlobe, priklučne moči 1,2W,  stanovitno ohišje debeline 20 mm s povišano stopnjo zaščite odporno na udarce po IK07, v pripravnem spoju avtonomije 1h, s sistemom leč in mikroprizem za dosego minimiziranja bleščanja in visok svetlobno tehnični izkoristek, izhodne svetilnosti pri 1h avtonomiji: 450 lm, dimenzije: 213x83x20 mm, z vgrajeno libelo za enostavno montažo v ravni liniji, z  večbarvno LED signalizacijo CBS o delovanju in funkcionalnosti svetilke v skladu s standardom SIST EN 60598-2-22, s certifikatom CE, z garancijo 4 leta na komplet svetilko vključno z baterijo","kos",8,null,{"$f":"D16*E16","v":{"v":0,"d":"0.00 €"}}]
[]
[6,"tip ZS2: Beghelli 4343 UP LED 200L 2W SA1H IP42 - nadgradna stenska oz. stropna svetilka zasilne razsvetljave z LED virom svetlobe, priključne moči 2W,  stanovitno ohišje debeline 20 mm s povišano stopnjo zaščite odporno na udarce po IK07, v trajnem spoju avtonomije 1h, s sistemom leč in mikroprizem za dosego minimiziranja bleščanja in visok svetlobno tehnični izkoristek izhodne svetilnosti 200 lm, dimenzije: 213x83x20 mm, s certifikatom CE, komplet 4310 20M - piktogramska tablica za stensko montažo","kos",1,null,{"$f":"D18*E18","v":{"v":0,"d":"0.00 €"}}]
[]
[7,"tip ZS3: Beghelli 4320 UP LED EXIT DF20M SA - nadgradna stropna svetilka zasilne razsvetljave z LED virom svetlobe s piktogramom smeri izhoda: naravnost, razpoznavnosti 20M, v trajnem spoju avtonomije 1h, dimenzije: 214x154x29 mm, s signalizacijo okvare v skladu z zahtevami standarda SIST EN 60598-2-22, z garancijo 4 leta na komplet svetilko vključno z baterijo","kos",1,null,{"$f":"D20*E20","v":{"v":0,"d":"0.00 €"}}]
[]
[8,"Beghelli Aestetica N - stenske nalepke s piktogramom smeri izhoda","kos",1,null,{"$f":"D22*E22","v":{"v":0,"d":"0.00 €"}}]
[]
[]
[]
[null,"SKUPAJ",{"$nulls":3},{"$f":"SUM(F8:F23)","v":{"v":0,"d":"0.00 €"}}]
[]
[]
[null,"1.2 INSTALACIJSKI MATERIAL"]
[]
["ŠT.","OPIS","ENOTA","KOL.","CENA/ENOTO","SKUPNA CENA"]
["1","Vtičniška omarica, viseča izvedba iz stropa, z vgrajenimi vtilnicami; 2 x vtičnica 16 A/230 V, 1xRJ45, priklop kompromiranega zraka, komplet z obešalnim priborom, koti tip: 208621 proizvod: MENNEKES","kos",4,null,{"$f":"D32*E32","v":{"v":0,"d":"0.00 €"}}]
[]
[]
[2,"Brezhalogeni vodniki in energetski kabli skladni z Cca s1d2a1 za instalacijo moči in kabelske razvode – polaganje pretežno na kabelske police, delno v izolacijske samougasne cevi"]
[null," - FG160M16 5x16 mm2","m",36,null,{"$f":"D36*E36","v":{"v":0,"d":"0.00 €"}}]
[null," - FG160M16 5x10 mm2","m",38,null,{"v":0,"d":"0.00 €"}]
[]
[3,"Brezhalogeni vodniki in energetski kabli skladni z Cca s1d2a1 za instalacijo moči in kabelske razvode – polaganje pretežno na kabelske police , delno v izolacijske samougasne cevi nadometno"]
[null," - NHXHM-J 5x2,5 mm2","m",120,null,{"v":0,"d":"0.00 €"}]
[null," - NHXHM-J 3x2,5 mm2","m",1620,null,{"v":0,"d":"0.00 €"}]
[null," - NHXHM-J 7x1,5 mm2","m",50,null,{"v":0,"d":"0.00 €"}]
[null," - NHXHM-J 5x1,5 mm2","m",60,null,{"v":0,"d":"0.00 €"}]
[null," - NHXHM-J 4x1,5 mm2","m",190,null,{"v":0,"d":"0.00 €"}]
[null," - NHXHM-J 3x1,5 mm2","m",960,null,{"v":0,"d":"0.00 €"}]
[null," - NHXHM-O 2x1 mm2","m",160,null,{"v":0,"d":"0.00 €"}]
[]
[4,"Vodnik H07Z1-K skladni z Cca s1d2a1 za izenačevanje potencialov in povezavo kovinskih mas, položen prosto ali uvlečen v predhodno položene instalacijske cevi"]
[null," - H07Z1-K 16 mm2","m",20,null,{"v":0,"d":"0.00 €"}]
[null," - H07Z1-K 10 mm2","m",40,null,{"v":0,"d":"0.00 €"}]
[null," - H07Z1-K 6 mm2","m",520,null,{"v":0,"d":"0.00 €"}]
[]
[5,"Elektroinstalacijska cev, brezhalogena, rebrasta, samogasna, gibljiva,  podometno"]
[null," - i. c. fi 23 mm","m",160,null,{"v":0,"d":"0.00 €"}]
[null," - i. c. fi 16 mm","m",280,null,{"v":0,"d":"0.00 €"}]
[]
[]
[6,"Kabelska polica iz perforirane pocinkane pločevine, pobarvana z belo barvo,  komplet z obešalnim in pritrdilnim  priborom, pokrovi ter tipskimi fazonskimi kosi \nProizvajalec: HERMI ali enako sledeče širine:"]
[null,"200 mm","m",58,null,{"$f":"D59*E59","v":{"v":0,"d":"0.00 €"}}]
[null,"100 mm","m",26,null,{"v":0,"d":"0.00 €"}]
[]
[]
[7,"Tesnjenje prehoda energetskih, napajalnih, signalnih in krmilnih kablov  skozi stene na meji požarnih sektorjev v požarni odpornosti EI-90, izvedeno npr. s sistemom Flamro S90"]
[null," - velikosti odprtine 10x10 cm","kos",3,null,{"$f":"D64*E64","v":{"v":0,"d":"0.00 €"}}]
[]
[]
[null,"SKUPAJ                         ",{"$nulls":3},{"$f":"SUM(F32:F65)","v":{"v":0,"d":"0.00 €"}}]
[]
[null,"1.3 ELEKTRIČNI RAZDELILCI"]
[]
["ŠT.","OPIS","ENOTA","KOL.","CENA/ENOTO","SKUPNA CENA"]
[]
[null,"~ svetilka za el. razdelilec s stikalom in vtičnico","kpl",1,null,{"$f":"D73*E73","v":{"v":0,"d":"0.00 €"}}]
[]
[]
[null,"SKUPAJ",{"$nulls":3},{"$f":"SUM(F73:F74)","v":{"v":0,"d":"0.00 €"}}]
[]
[]
[null,"ELEKTRO INSTALACIJE IN ELEKTRO OPREMA"]
[]
[null,"REKAPITULACIJA"]
[]
[null,"1 EL.INŠTALACIJE ZA JAKI TOK  "]
[]
[null,"   1.1 SVETILKE",{"$nulls":3},{"$f":"F26","v":{"v":0,"d":"0.00 €"}}]
[null,"   1.2 INSTALACIJSKI MATERIAL",{"$nulls":3},{"$f":"F67","v":{"v":0,"d":"0.00 €"}}]
[null,"   1.3 EL.RAZDELILCI",{"$nulls":3},{"$f":"F76","v":{"v":0,"d":"0.00 €"}}]
[]
[null,"SKUPAJ: ",{"$nulls":3},{"$f":"SUM(F85:F88)","v":{"v":0,"d":"0.00 €"}}]